Body,Body name,Date,Transaction number,Amount,Non recoverable VAT included in amount,Supplier name,Supplier ID,Expense area,Fund type,Expense type,Category description,
http://thanet.gov.uk/supplierspend,Thanet District Council,07/06/2016,409688,447.90,,Academia Ltd,ACA008,East Kent Shared Services,Revenue,Communications & Computing,ICT,
http://thanet.gov.uk/supplierspend,Thanet District Council,07/06/2016,408969,2857.00,,Ace Equipment,ACE003,Operational Services,Revenue,"Equip, Furniture And Materials",Maritime Services,
http://thanet.gov.uk/supplierspend,Thanet District Council,07/06/2016,409795,180.60,,Ace Equipment,ACE003,Operational Services,Revenue,"Equip, Furniture And Materials",Maritime Services,
http://thanet.gov.uk/supplierspend,Thanet District Council,07/06/2016,409644,1950.00,,Adrian Cox Associates Limited,ADR002,Corporate Resources and S151,Balance Sheet,Other Land And Buildings-Hra,Consultancy,
http://thanet.gov.uk/supplierspend,Thanet District Council,07/06/2016,409638,495.00,,All Access Ltd,ALL031,Community Services,Revenue,Services,Building Construction Material,
http://thanet.gov.uk/supplierspend,Thanet District Council,07/06/2016,409668,814.80,,Amenity Horticultural Serv Ltd,AME001,Operational Services,Revenue,"Equip, Furniture And Materials",Horticultural,
http://thanet.gov.uk/supplierspend,Thanet District Council,07/06/2016,409669,802.50,,Amenity Horticultural Serv Ltd,AME001,Operational Services,Revenue,"Equip, Furniture And Materials",Horticultural,
http://thanet.gov.uk/supplierspend,Thanet District Council,07/06/2016,409675,683.00,,Amenity Horticultural Serv Ltd,AME001,Operational Services,Revenue,"Repairs,  Alter & Mtce - Build",Horticultural,
http://thanet.gov.uk/supplierspend,Thanet District Council,07/06/2016,409791,300.00,,Boys & Maughan,BOY001,Corporate Resources and S151,Revenue,Services,Various Categories,
http://thanet.gov.uk/supplierspend,Thanet District Council,07/06/2016,409680,2148.62,,Bt Payment Services Ltd,BTE003,Corporate Resources and S151,Balance Sheet,Telephone Holding Account,ICT,
http://thanet.gov.uk/supplierspend,Thanet District Council,07/06/2016,409662,1370.50,,Buckingham Futures Limited,BUC010,Community Services,Revenue,Agency Staff,Human Resources,
http://thanet.gov.uk/supplierspend,Thanet District Council,07/06/2016,409624,693.00,,Canterbury Christ Church University,CAN006,Community Services,Revenue,Rents,Various Categories,
http://thanet.gov.uk/supplierspend,Thanet District Council,07/06/2016,409437,260.00,,Contract Sign Systems Limited,CON011,Operational Services,Revenue,"Equip, Furniture And Materials",Building Construction Material,
http://thanet.gov.uk/supplierspend,Thanet District Council,07/06/2016,409782,7598.08,,Dave Mannings Painting Cont Ltd,DAV035,Operational Services,Revenue,"Repairs,  Alter & Mtce - Build",Construction-Repair And Maint,
http://thanet.gov.uk/supplierspend,Thanet District Council,07/06/2016,409623,36327.48,,Dcb (Kent) Ltd,DCB001,Corporate Resources and S151,Balance Sheet,Repairs And Mtce Holding A/C,Construction-Repair And Maint,
http://thanet.gov.uk/supplierspend,Thanet District Council,07/06/2016,409160,856.10,,E Saunders Margate Ltd,SAU001,Operational Services,Revenue,"Repairs,  Alter & Mtce - Build",Construction-Repair And Maint,
http://thanet.gov.uk/supplierspend,Thanet District Council,07/06/2016,408699,6786.20,,Egbert H Taylor & Company Ltd,TAY005,Operational Services,Revenue,"Equip, Furniture And Materials",Environmental Services,
http://thanet.gov.uk/supplierspend,Thanet District Council,07/06/2016,409641,1632.00,,Environmental Scientifics Group Ltd,ENV016,Community Services,Revenue,Services,Construction-Repair And Maint,
http://thanet.gov.uk/supplierspend,Thanet District Council,07/06/2016,410172,508.00,,Family Mosaic Housing,FAM001,Corporate Resources and S151,Balance Sheet,Capital Exp-Non Council Assets,Housing Management,
http://thanet.gov.uk/supplierspend,Thanet District Council,07/06/2016,409165,949.05,,Hr Go (Kent) Ltd,HRG001,Operational Services,Revenue,Agency Staff,Human Resources,
http://thanet.gov.uk/supplierspend,Thanet District Council,07/06/2016,409635,777.20,,Hr Go (Kent) Ltd,HRG001,Operational Services,Revenue,Agency Staff,Human Resources,
http://thanet.gov.uk/supplierspend,Thanet District Council,07/06/2016,409683,854.04,,Hr Go (Kent) Ltd,HRG001,Operational Services,Revenue,Agency Staff,Human Resources,
http://thanet.gov.uk/supplierspend,Thanet District Council,07/06/2016,409711,3588.70,,Hr Go (Kent) Ltd,HRG001,Operational Services,Revenue,Agency Staff,Human Resources,
http://thanet.gov.uk/supplierspend,Thanet District Council,07/06/2016,409712,9204.63,,Hr Go (Kent) Ltd,HRG001,Operational Services,Revenue,Agency Staff,Human Resources,
http://thanet.gov.uk/supplierspend,Thanet District Council,07/06/2016,409713,3957.97,,Hr Go (Kent) Ltd,HRG001,Operational Services,Revenue,Agency Staff,Human Resources,
http://thanet.gov.uk/supplierspend,Thanet District Council,07/06/2016,409768,1301.96,,Hr Go (Kent) Ltd,HRG001,Operational Services,Revenue,Agency Staff,Human Resources,
http://thanet.gov.uk/supplierspend,Thanet District Council,07/06/2016,409769,865.06,,Hr Go (Kent) Ltd,HRG001,Operational Services,Revenue,Agency Staff,Human Resources,
http://thanet.gov.uk/supplierspend,Thanet District Council,07/06/2016,409770,2546.15,,Hr Go (Kent) Ltd,HRG001,Operational Services,Revenue,Agency Staff,Human Resources,
http://thanet.gov.uk/supplierspend,Thanet District Council,07/06/2016,409771,1082.02,,Hr Go (Kent) Ltd,HRG001,Operational Services,Revenue,Agency Staff,Human Resources,
http://thanet.gov.uk/supplierspend,Thanet District Council,07/06/2016,409772,2706.23,,Hr Go (Kent) Ltd,HRG001,Operational Services,Revenue,Agency Staff,Human Resources,
http://thanet.gov.uk/supplierspend,Thanet District Council,07/06/2016,409773,1829.52,,Hr Go (Kent) Ltd,HRG001,Operational Services,Revenue,Agency Staff,Human Resources,
http://thanet.gov.uk/supplierspend,Thanet District Council,07/06/2016,409774,529.47,,Hr Go (Kent) Ltd,HRG001,Community Services,Revenue,Agency Staff,Human Resources,
http://thanet.gov.uk/supplierspend,Thanet District Council,07/06/2016,409775,411.40,,Hr Go (Kent) Ltd,HRG001,Operational Services,Revenue,Agency Staff,Human Resources,
http://thanet.gov.uk/supplierspend,Thanet District Council,07/06/2016,409622,22661.58,,Imperial Civil Enforcement Sols Ltd,IMP008,Operational Services,Revenue,"Equip, Furniture And Materials",Street And Traffic Management,
http://thanet.gov.uk/supplierspend,Thanet District Council,07/06/2016,409696,909.44,,Lister Wilder Limited,LIS002,Operational Services,Revenue,"Equip, Furniture And Materials",Horticultural,
http://thanet.gov.uk/supplierspend,Thanet District Council,07/06/2016,409422,376.00,,Lyreco Uk Limited,LYR001,Corporate Resources and S151,Revenue,"Print, Stat And Gen Off Exps",Stationery,
http://thanet.gov.uk/supplierspend,Thanet District Council,07/06/2016,409424,376.00,,Lyreco Uk Limited,LYR001,Corporate Resources and S151,Revenue,"Print, Stat And Gen Off Exps",Stationery,
http://thanet.gov.uk/supplierspend,Thanet District Council,07/06/2016,409136,720.00,,M E Oram,ORA004,Operational Services,Revenue,Training,Human Resources,
http://thanet.gov.uk/supplierspend,Thanet District Council,07/06/2016,409605,4830.00,,Mears Ltd,MEA003,Corporate Resources and S151,Balance Sheet,Repairs And Mtce Holding A/C,Construction-Repair And Maint,
http://thanet.gov.uk/supplierspend,Thanet District Council,07/06/2016,409606,680.22,,Mears Ltd,MEA003,Corporate Resources and S151,Balance Sheet,Repairs And Mtce Holding A/C,Construction-Repair And Maint,
http://thanet.gov.uk/supplierspend,Thanet District Council,07/06/2016,409607,11040.00,,Mears Ltd,MEA003,Corporate Resources and S151,Balance Sheet,Repairs And Mtce Holding A/C,Construction-Repair And Maint,
http://thanet.gov.uk/supplierspend,Thanet District Council,07/06/2016,409620,561.62,,Mears Ltd,MEA003,Corporate Resources and S151,Revenue,"Repairs,  Alter & Mtce - Build",Construction-Repair And Maint,
http://thanet.gov.uk/supplierspend,Thanet District Council,07/06/2016,409764,290.86,,Mears Ltd,MEA003,Operational Services,Revenue,"Repairs,  Alter & Mtce - Build",Construction-Repair And Maint,
http://thanet.gov.uk/supplierspend,Thanet District Council,07/06/2016,409765,301.30,,Mears Ltd,MEA003,Operational Services,Revenue,"Repairs,  Alter & Mtce - Build",Construction-Repair And Maint,
http://thanet.gov.uk/supplierspend,Thanet District Council,07/06/2016,409766,387.30,,Mears Ltd,MEA003,Operational Services,Revenue,"Repairs,  Alter & Mtce - Build",Construction-Repair And Maint,
http://thanet.gov.uk/supplierspend,Thanet District Council,07/06/2016,409419,330.00,,Michelle Williams,WIL064,Community Services,Revenue,Services,Arts And Leisure Services,
http://thanet.gov.uk/supplierspend,Thanet District Council,07/06/2016,410167,5145.00,,Moore Blatch Llp (Client Account),MOO010,Corporate Resources and S151,Balance Sheet,Other Land And Buildings-Hra,Non Trade Payee,
http://thanet.gov.uk/supplierspend,Thanet District Council,07/06/2016,410168,1970.33,,Moore Blatch Llp (Client Account),MOO010,Corporate Resources and S151,Balance Sheet,Other Land And Buildings-Hra,Non Trade Payee,
http://thanet.gov.uk/supplierspend,Thanet District Council,07/06/2016,408975,561.00,,Morgan Jones Ltd,MOR001,Corporate Resources and S151,Revenue,Agency Staff,Human Resources,
http://thanet.gov.uk/supplierspend,Thanet District Council,07/06/2016,409910,3060.06,,National Express Ltd,NAT010,Community Services,Revenue,Services,Agency Payments,
http://thanet.gov.uk/supplierspend,Thanet District Council,07/06/2016,409699,463.31,,Neopost Ltd,NEO003,Corporate Resources and S151,Revenue,"Equip, Furniture And Materials",Mail Services,
http://thanet.gov.uk/supplierspend,Thanet District Council,07/06/2016,410173,2000.00,,Neopost Ltd Credifon,NEO002,Corporate Resources and S151,Revenue,Communications & Computing,Mail Services,
http://thanet.gov.uk/supplierspend,Thanet District Council,07/06/2016,409279,325.00,,Npower Yorkshire Limited,NPO004,Community Services,Revenue,Energy Costs,Utilities,
http://thanet.gov.uk/supplierspend,Thanet District Council,07/06/2016,409098,807.26,,Ntm-Gb Limited,NTM001,Operational Services,Revenue,Direct Transport Costs,Vehicle Management,
http://thanet.gov.uk/supplierspend,Thanet District Council,07/06/2016,409621,454.92,,Ntm-Gb Limited,NTM001,Operational Services,Revenue,Direct Transport Costs,Vehicle Management,
http://thanet.gov.uk/supplierspend,Thanet District Council,07/06/2016,408044,875.83,,Ocs Group Uk Ltd T/A Fountains,OCS005,Corporate Resources and S151,Revenue,Cleaning & Domestic Supplies,Cleaning And Janitorial,
http://thanet.gov.uk/supplierspend,Thanet District Council,07/06/2016,409613,11571.84,,Ocs Group Uk Ltd T/A Fountains,OCS005,Corporate Resources and S151,Balance Sheet,Repairs And Mtce Holding A/C,Cleaning And Janitorial,
http://thanet.gov.uk/supplierspend,Thanet District Council,07/06/2016,409615,875.83,,Ocs Group Uk Ltd T/A Fountains,OCS005,Corporate Resources and S151,Revenue,Cleaning & Domestic Supplies,Cleaning And Janitorial,
http://thanet.gov.uk/supplierspend,Thanet District Council,07/06/2016,409659,503.13,,Osborne Richardson Limited,OSB009,Community Services,Revenue,Agency Staff,Human Resources,
http://thanet.gov.uk/supplierspend,Thanet District Council,07/06/2016,409663,1456.00,,Portakabin Ltd,POR001,Operational Services,Revenue,"Equip, Furniture And Materials",Facilities And Management Serv,
http://thanet.gov.uk/supplierspend,Thanet District Council,07/06/2016,409634,408.18,,Premier Paper Group Limited,PRE035,Corporate Resources and S151,Revenue,"Print, Stat And Gen Off Exps",Stationery,
http://thanet.gov.uk/supplierspend,Thanet District Council,07/06/2016,409890,420.00,,R Cannon,CAN007,Operational Services,Revenue,Services,Maritime Services,
http://thanet.gov.uk/supplierspend,Thanet District Council,07/06/2016,409896,1050.00,,R Cannon,CAN007,Operational Services,Revenue,Services,Maritime Services,
http://thanet.gov.uk/supplierspend,Thanet District Council,07/06/2016,409677,63788.32,,Royal National Lifeboat Institution,RNL002,Operational Services,Revenue,Services,Arts And Leisure Services,
http://thanet.gov.uk/supplierspend,Thanet District Council,07/06/2016,409657,1639.50,,Silgo Lubricants Ltd,SIL007,Operational Services,Revenue,Direct Transport Costs,Vehicle Management,
http://thanet.gov.uk/supplierspend,Thanet District Council,07/06/2016,409682,475.91,,Southern Water,SWA001,Operational Services,Revenue,Water Services,Utilities,
http://thanet.gov.uk/supplierspend,Thanet District Council,07/06/2016,409166,324.00,,St Philips Church P P C,STP007,Corporate Governance,Revenue,Rents,Facilities And Management Serv,
http://thanet.gov.uk/supplierspend,Thanet District Council,07/06/2016,409670,524.59,,Standfast Burglar Alarm Co (Ek) Ltd,STA003,Operational Services,Revenue,"Equip, Furniture And Materials",Facilities And Management Serv,
http://thanet.gov.uk/supplierspend,Thanet District Council,07/06/2016,409674,1640.80,,Standfast Burglar Alarm Co (Ek) Ltd,STA003,Operational Services,Revenue,"Equip, Furniture And Materials",Facilities And Management Serv,
http://thanet.gov.uk/supplierspend,Thanet District Council,07/06/2016,408183,1421.00,,Streetmaster (S.Wales) Limited,STR001,Operational Services,Revenue,"Equip, Furniture And Materials",Highway Equipment And Material,
http://thanet.gov.uk/supplierspend,Thanet District Council,07/06/2016,409247,2291.66,,The Glenwood Hotel,GLE007,Community Services,Revenue,Services,Housing Management,
http://thanet.gov.uk/supplierspend,Thanet District Council,07/06/2016,409784,2700.00,,Trinity House,TRI002,Operational Services,Revenue,"Equip, Furniture And Materials",Maritime Services,
http://thanet.gov.uk/supplierspend,Thanet District Council,07/06/2016,408961,5574.00,,Triple M Contract Services Ltd,TRI017,Corporate Resources and S151,Balance Sheet,Repairs And Mtce Holding A/C,Construction-Repair And Maint,
http://thanet.gov.uk/supplierspend,Thanet District Council,07/06/2016,408567,161.34,,Veolia Es (Uk) Ltd,VEO001,Corporate Resources and S151,Balance Sheet,Rechargeable Works,Environmental Services,
http://thanet.gov.uk/supplierspend,Thanet District Council,07/06/2016,408567,1841.19,,Veolia Es (Uk) Ltd,VEO001,Operational Services,Revenue,Cleaning & Domestic Supplies,Environmental Services,
http://thanet.gov.uk/supplierspend,Thanet District Council,07/06/2016,409431,934.54,,Viridian Energy Solutions Limited,VIR005,Corporate Resources and S151,Balance Sheet,Repairs And Mtce Holding A/C,Facilities And Management Serv,
http://thanet.gov.uk/supplierspend,Thanet District Council,07/06/2016,409282,6800.45,,Vodafone Limited (Corporate),VOD001,Corporate Resources and S151,Balance Sheet,Mobile Phone Holding A/C,ICT,
http://thanet.gov.uk/supplierspend,Thanet District Council,07/06/2016,409779,2573.65,,Westbrook Construction (Margate) Ltd,WES021,Operational Services,Revenue,"Repairs,  Alter & Mtce - Build",Various Categories,
http://thanet.gov.uk/supplierspend,Thanet District Council,07/06/2016,409500,330.00,,Westward Ho Hotel,WES055,Community Services,Revenue,Services,Housing Management,
http://thanet.gov.uk/supplierspend,Thanet District Council,07/06/2016,409162,6016.96,,Your Leisure Kent Limited,YOU016,Corporate Governance,Revenue,Rents,Arts And Leisure Services,
http://thanet.gov.uk/supplierspend,Thanet District Council,10/06/2016,410311,300.00,,Epos Group (Kent),EPO001,Community Services,Revenue,"Equip, Furniture And Materials",Stationery,
http://thanet.gov.uk/supplierspend,Thanet District Council,10/06/2016,408968,506.50,,Frandham Boarding Kennels,FRA010,Operational Services,Revenue,Services,Environmental Services,
http://thanet.gov.uk/supplierspend,Thanet District Council,10/06/2016,408606,312.52,,Orbis Protect Limited,ORB009,Corporate Resources and S151,Revenue,Services,Facilities And Management Serv,
http://thanet.gov.uk/supplierspend,Thanet District Council,10/06/2016,410396,889.00,,Solace Group Ltd,SOL017,Chief Executive,Revenue,Expenses,Human Resources,
http://thanet.gov.uk/supplierspend,Thanet District Council,10/06/2016,409826,1876.26,,Southern Water,SWA001,Corporate Resources and S151,Revenue,Water Services,Utilities,
http://thanet.gov.uk/supplierspend,Thanet District Council,14/06/2016,410566,390.78,,10 Dalby Square (Management) Ltd,10D001,Corporate Resources and S151,Balance Sheet,Capital Exp-Non Council Assets,Grants,
http://thanet.gov.uk/supplierspend,Thanet District Council,14/06/2016,410567,390.78,,10 Dalby Square (Management) Ltd,10D001,Corporate Resources and S151,Balance Sheet,Capital Exp-Non Council Assets,Grants,
http://thanet.gov.uk/supplierspend,Thanet District Council,14/06/2016,410569,390.78,,10 Dalby Square (Management) Ltd,10D001,Corporate Resources and S151,Balance Sheet,Capital Exp-Non Council Assets,Grants,
http://thanet.gov.uk/supplierspend,Thanet District Council,14/06/2016,410570,390.78,,10 Dalby Square (Management) Ltd,10D001,Corporate Resources and S151,Balance Sheet,Capital Exp-Non Council Assets,Grants,
http://thanet.gov.uk/supplierspend,Thanet District Council,14/06/2016,410571,390.78,,10 Dalby Square (Management) Ltd,10D001,Corporate Resources and S151,Balance Sheet,Capital Exp-Non Council Assets,Grants,
http://thanet.gov.uk/supplierspend,Thanet District Council,14/06/2016,409830,630.07,,Advanced Business Solutions,COA011,Corporate Resources and S151,Revenue,Communications & Computing,ICT,
http://thanet.gov.uk/supplierspend,Thanet District Council,14/06/2016,409898,4214.56,,Aligned Assets Ltd,ALI002,East Kent Shared Services,Revenue,Communications & Computing,ICT,
http://thanet.gov.uk/supplierspend,Thanet District Council,14/06/2016,409897,460.75,,Aqua Pure (South East) Limited,AQU007,Operational Services,Revenue,"Repairs,  Alter & Mtce - Build",Maritime Services,
http://thanet.gov.uk/supplierspend,Thanet District Council,14/06/2016,409801,705.00,,Aston Walker,AST008,Community Services,Revenue,Services,Cemetery And Crematorium,
http://thanet.gov.uk/supplierspend,Thanet District Council,14/06/2016,409417,1850.00,,Boys & Maughan,BOY001,Corporate Resources and S151,Revenue,Services,Various Categories,
http://thanet.gov.uk/supplierspend,Thanet District Council,14/06/2016,410465,10257.41,,Bramling Construction Ltd,BRA020,Corporate Resources and S151,Balance Sheet,Capital Exp-Non Council Assets,Grants,
http://thanet.gov.uk/supplierspend,Thanet District Council,14/06/2016,410475,8494.03,,Bramling Construction Ltd,BRA020,Corporate Resources and S151,Balance Sheet,Capital Exp-Non Council Assets,Grants,
http://thanet.gov.uk/supplierspend,Thanet District Council,14/06/2016,409797,1272.00,,Business Computer Solutions Ltd,BUS002,Community Services,Revenue,Communications & Computing,ICT,
http://thanet.gov.uk/supplierspend,Thanet District Council,14/06/2016,410178,840.00,,Cameron Consulting (Uk) Limited,CAM022,Corporate Resources and S151,Balance Sheet,Repairs And Mtce Holding A/C,Consultancy,
http://thanet.gov.uk/supplierspend,Thanet District Council,14/06/2016,410116,328.89,,Canon (Uk) Ltd,CAN021,Community Services,Revenue,Services,Facilities And Management Serv,
http://thanet.gov.uk/supplierspend,Thanet District Council,14/06/2016,409642,1541.25,,Canterbury City Council,CAN004,East Kent Shared Services,Revenue,"Print, Stat And Gen Off Exps",Various Cats - Public Sector,
http://thanet.gov.uk/supplierspend,Thanet District Council,14/06/2016,409995,1600.00,,Canterbury Scaffolding,CAN023,Corporate Resources and S151,Balance Sheet,Council Dwellings,Construction-Repair And Maint,
http://thanet.gov.uk/supplierspend,Thanet District Council,14/06/2016,410025,9000.00,,Capita Resourcing Ltd,CAP007,Corporate Resources and S151,Revenue,Agency Staff,Human Resources,
http://thanet.gov.uk/supplierspend,Thanet District Council,14/06/2016,410310,470.00,,Certsure Llp,CER004,Operational Services,Revenue,Services,Financial Services,
http://thanet.gov.uk/supplierspend,Thanet District Council,14/06/2016,409954,1484.45,,Civica Uk Ltd,CIV003,East Kent Shared Services,Revenue,Communications & Computing,ICT,
http://thanet.gov.uk/supplierspend,Thanet District Council,14/06/2016,409889,600.00,,Colin Heath,HEA020,Community Services,Revenue,Services,Human Resources,
http://thanet.gov.uk/supplierspend,Thanet District Council,14/06/2016,410188,1501.50,,Dcb (Kent) Ltd,DCB001,Corporate Resources and S151,Balance Sheet,Repairs And Mtce Holding A/C,Construction-Repair And Maint,
http://thanet.gov.uk/supplierspend,Thanet District Council,14/06/2016,410189,4620.95,,Dcb (Kent) Ltd,DCB001,Corporate Resources and S151,Balance Sheet,Repairs And Mtce Holding A/C,Construction-Repair And Maint,
http://thanet.gov.uk/supplierspend,Thanet District Council,14/06/2016,410190,33216.97,,Dcb (Kent) Ltd,DCB001,Corporate Resources and S151,Balance Sheet,Repairs And Mtce Holding A/C,Construction-Repair And Maint,
http://thanet.gov.uk/supplierspend,Thanet District Council,14/06/2016,410042,2221.86,,Dennis Eagle Ltd,DEN005,Operational Services,Revenue,Direct Transport Costs,Vehicle Management,
http://thanet.gov.uk/supplierspend,Thanet District Council,14/06/2016,409776,2000.00,,Deyton Bell Limited,DEY001,Community Services,Revenue,Services,Consultancy,
http://thanet.gov.uk/supplierspend,Thanet District Council,14/06/2016,409778,528.79,,Dha Planning Limited,DHA002,Community Services,Revenue,Services,Consultancy,
http://thanet.gov.uk/supplierspend,Thanet District Council,14/06/2016,409962,583.01,,East Kent Components Ltd,EKC006,Operational Services,Revenue,Direct Transport Costs,Vehicle Management,
http://thanet.gov.uk/supplierspend,Thanet District Council,14/06/2016,409689,496.00,,East Kent Hose,EKH004,Operational Services,Revenue,Direct Transport Costs,Vehicle Management,
http://thanet.gov.uk/supplierspend,Thanet District Council,14/06/2016,409762,1716.67,,Esri (Uk) Ltd,ESR001,Corporate Resources and S151,Revenue,Communications & Computing,ICT,
http://thanet.gov.uk/supplierspend,Thanet District Council,14/06/2016,409762,2480.83,,Esri (Uk) Ltd,ESR001,East Kent Shared Services,Revenue,Communications & Computing,ICT,
http://thanet.gov.uk/supplierspend,Thanet District Council,14/06/2016,410005,398.00,,Estuary Services Ltd,EST002,Operational Services,Revenue,Cont Hire & Operating Lease,Maritime Services,
http://thanet.gov.uk/supplierspend,Thanet District Council,14/06/2016,410464,1230.89,,Family Mosaic Housing,FAM001,Corporate Resources and S151,Balance Sheet,Capital Exp-Non Council Assets,Housing Management,
http://thanet.gov.uk/supplierspend,Thanet District Council,14/06/2016,410469,1275.70,,Family Mosaic Housing,FAM001,Corporate Resources and S151,Balance Sheet,Capital Exp-Non Council Assets,Housing Management,
http://thanet.gov.uk/supplierspend,Thanet District Council,14/06/2016,410471,906.58,,Family Mosaic Housing,FAM001,Corporate Resources and S151,Balance Sheet,Capital Exp-Non Council Assets,Housing Management,
http://thanet.gov.uk/supplierspend,Thanet District Council,14/06/2016,410028,270.00,,Florence Court Hotel,FLO003,Community Services,Revenue,Services,Housing Management,
http://thanet.gov.uk/supplierspend,Thanet District Council,14/06/2016,410030,930.00,,Florence Court Hotel,FLO003,Community Services,Revenue,Services,Housing Management,
http://thanet.gov.uk/supplierspend,Thanet District Council,14/06/2016,410031,525.00,,Florence Court Hotel,FLO003,Community Services,Revenue,Services,Housing Management,
http://thanet.gov.uk/supplierspend,Thanet District Council,14/06/2016,410032,930.00,,Florence Court Hotel,FLO003,Corporate Resources and S151,Revenue,Services,Housing Management,
http://thanet.gov.uk/supplierspend,Thanet District Council,14/06/2016,410033,2310.00,,Florence Court Hotel,FLO003,Community Services,Revenue,Services,Housing Management,
http://thanet.gov.uk/supplierspend,Thanet District Council,14/06/2016,410035,1085.00,,Florence Court Hotel,FLO003,Community Services,Revenue,Services,Housing Management,
http://thanet.gov.uk/supplierspend,Thanet District Council,14/06/2016,410036,970.00,,Florence Court Hotel,FLO003,Community Services,Revenue,Services,Housing Management,
http://thanet.gov.uk/supplierspend,Thanet District Council,14/06/2016,410038,1085.00,,Florence Court Hotel,FLO003,Community Services,Revenue,Services,Housing Management,
http://thanet.gov.uk/supplierspend,Thanet District Council,14/06/2016,410039,1705.00,,Florence Court Hotel,FLO003,Community Services,Revenue,Services,Housing Management,
http://thanet.gov.uk/supplierspend,Thanet District Council,14/06/2016,410113,930.00,,Florence Court Hotel,FLO003,Community Services,Revenue,Services,Housing Management,
http://thanet.gov.uk/supplierspend,Thanet District Council,14/06/2016,409903,480.30,,Gripclad Limited,GRI021,Operational Services,Revenue,"Repairs,  Alter & Mtce - Build",Construction-Repair And Maint,
http://thanet.gov.uk/supplierspend,Thanet District Council,14/06/2016,409650,492.75,,Heath Lambert Limited (Client Money),HEA011,Corporate Resources and S151,Balance Sheet,Insurance Holding Account,Financial Services,
http://thanet.gov.uk/supplierspend,Thanet District Council,14/06/2016,409814,650.00,,Hi Way Services Ltd,HIW002,Operational Services,Revenue,"Repairs,  Alter & Mtce - Build",Highway Equipment And Material,
http://thanet.gov.uk/supplierspend,Thanet District Council,14/06/2016,409793,882.45,,Hr Go (Kent) Ltd,HRG001,Operational Services,Revenue,Agency Staff,Human Resources,
http://thanet.gov.uk/supplierspend,Thanet District Council,14/06/2016,409911,496.60,,Hr Go (Kent) Ltd,HRG001,Operational Services,Revenue,Agency Staff,Human Resources,
http://thanet.gov.uk/supplierspend,Thanet District Council,14/06/2016,409912,590.70,,Hr Go (Kent) Ltd,HRG001,Operational Services,Revenue,Agency Staff,Human Resources,
http://thanet.gov.uk/supplierspend,Thanet District Council,14/06/2016,409913,396.33,,Hr Go (Kent) Ltd,HRG001,Operational Services,Revenue,Agency Staff,Human Resources,
http://thanet.gov.uk/supplierspend,Thanet District Council,14/06/2016,410058,6768.94,,Hr Go (Kent) Ltd,HRG001,Operational Services,Revenue,Agency Staff,Human Resources,
http://thanet.gov.uk/supplierspend,Thanet District Council,14/06/2016,410064,4868.99,,Hr Go (Kent) Ltd,HRG001,Operational Services,Revenue,Agency Staff,Human Resources,
http://thanet.gov.uk/supplierspend,Thanet District Council,14/06/2016,410065,10363.35,,Hr Go (Kent) Ltd,HRG001,Operational Services,Revenue,Agency Staff,Human Resources,
http://thanet.gov.uk/supplierspend,Thanet District Council,14/06/2016,410134,529.47,,Hr Go (Kent) Ltd,HRG001,Community Services,Revenue,Agency Staff,Human Resources,
http://thanet.gov.uk/supplierspend,Thanet District Council,14/06/2016,410135,358.16,,Hr Go (Kent) Ltd,HRG001,Operational Services,Revenue,Agency Staff,Human Resources,
http://thanet.gov.uk/supplierspend,Thanet District Council,14/06/2016,410136,2533.33,,Hr Go (Kent) Ltd,HRG001,Operational Services,Revenue,Agency Staff,Human Resources,
http://thanet.gov.uk/supplierspend,Thanet District Council,14/06/2016,410137,1597.20,,Hr Go (Kent) Ltd,HRG001,Operational Services,Revenue,Agency Staff,Human Resources,
http://thanet.gov.uk/supplierspend,Thanet District Council,14/06/2016,410138,1443.12,,Hr Go (Kent) Ltd,HRG001,Operational Services,Revenue,Agency Staff,Human Resources,
http://thanet.gov.uk/supplierspend,Thanet District Council,14/06/2016,410140,882.45,,Hr Go (Kent) Ltd,HRG001,Operational Services,Revenue,Agency Staff,Human Resources,
http://thanet.gov.uk/supplierspend,Thanet District Council,14/06/2016,410141,879.31,,Hr Go (Kent) Ltd,HRG001,Operational Services,Revenue,Agency Staff,Human Resources,
http://thanet.gov.uk/supplierspend,Thanet District Council,14/06/2016,410473,7412.45,,Hubbard & Houghton Construction Ltd,HUB003,Corporate Resources and S151,Balance Sheet,Capital Exp-Non Council Assets,Construction-Repair And Maint,
http://thanet.gov.uk/supplierspend,Thanet District Council,14/06/2016,410004,2000.00,,Idox Software  Limited,IDO001,Community Services,Revenue,Communications & Computing,ICT,
http://thanet.gov.uk/supplierspend,Thanet District Council,14/06/2016,410467,1000.00,,John Gale,GAL001,Corporate Resources and S151,Balance Sheet,Capital Exp-Non Council Assets,Grants,
http://thanet.gov.uk/supplierspend,Thanet District Council,14/06/2016,409947,1267.90,,Kenhire Limited,KEN042,Operational Services,Revenue,Cont Hire & Operating Lease,Vehicle Management,
http://thanet.gov.uk/supplierspend,Thanet District Council,14/06/2016,409948,1267.90,,Kenhire Limited,KEN042,Operational Services,Revenue,Cont Hire & Operating Lease,Vehicle Management,
http://thanet.gov.uk/supplierspend,Thanet District Council,14/06/2016,409813,1440.00,,Lee Evans Partnership Llp,LEE007,Community Services,Revenue,Services,Consultancy,
http://thanet.gov.uk/supplierspend,Thanet District Council,14/06/2016,410010,2371.00,,Liberty Printers(Ar& Rf Reddin) Ltd,LIB002,Operational Services,Revenue,"Print, Stat And Gen Off Exps",Street And Traffic Management,
http://thanet.gov.uk/supplierspend,Thanet District Council,14/06/2016,409871,305.07,,Lyreco Uk Limited,LYR001,Corporate Resources and S151,Revenue,"Print, Stat And Gen Off Exps",Stationery,
http://thanet.gov.uk/supplierspend,Thanet District Council,14/06/2016,409892,322.50,,Main Man Supplies Ltd,MAI001,Operational Services,Revenue,"Clothes, Uniforms & Laundry",Clothing,
http://thanet.gov.uk/supplierspend,Thanet District Council,14/06/2016,409908,718.65,,Main Man Supplies Ltd,MAI001,Operational Services,Revenue,"Clothes, Uniforms & Laundry",Clothing,
http://thanet.gov.uk/supplierspend,Thanet District Council,14/06/2016,409812,1580.00,,Maxwells Grounds Maintenance Ltd,MAX002,Corporate Resources and S151,Revenue,"Repairs,  Alter & Mtce - Build",Construction-Repair And Maint,
http://thanet.gov.uk/supplierspend,Thanet District Council,14/06/2016,410132,693.10,,Mears Ltd,MEA003,Corporate Resources and S151,Revenue,"Repairs,  Alter & Mtce - Build",Construction-Repair And Maint,
http://thanet.gov.uk/supplierspend,Thanet District Council,14/06/2016,409805,5293.97,,Medway Council,MED003,Community Services,Revenue,Grants & Subscriptions,Various Cats - Public Sector,
http://thanet.gov.uk/supplierspend,Thanet District Council,14/06/2016,410155,1800.00,,Meter Macs Ltd,MET014,Operational Services,Revenue,"Equip, Furniture And Materials",Street And Traffic Management,
http://thanet.gov.uk/supplierspend,Thanet District Council,14/06/2016,410155,1122.52,,Meter Macs Ltd,MET014,Operational Services,Revenue,Services,Street And Traffic Management,
http://thanet.gov.uk/supplierspend,Thanet District Council,14/06/2016,409803,51077.31,,Molyneux Rose Ltd Cl Acc-I/S M'Gate,MOL002,Operational Services,Revenue,Rents,Financial Services,
http://thanet.gov.uk/supplierspend,Thanet District Council,14/06/2016,409804,48253.05,,Molyneux Rose Ltd Cl Acc-I/S R'Gate,MOL003,Operational Services,Revenue,Rents,Facilities And Management Serv,
http://thanet.gov.uk/supplierspend,Thanet District Council,14/06/2016,409501,314.16,,Morgan Jones Ltd,MOR001,Corporate Governance,Revenue,Agency Staff,Human Resources,
http://thanet.gov.uk/supplierspend,Thanet District Council,14/06/2016,409503,531.08,,Morgan Jones Ltd,MOR001,Corporate Resources and S151,Revenue,Agency Staff,Human Resources,
http://thanet.gov.uk/supplierspend,Thanet District Council,14/06/2016,409904,582.75,,Morgan Jones Ltd,MOR001,Community Services,Revenue,Agency Staff,Human Resources,
http://thanet.gov.uk/supplierspend,Thanet District Council,14/06/2016,409905,314.16,,Morgan Jones Ltd,MOR001,Corporate Governance,Revenue,Agency Staff,Human Resources,
http://thanet.gov.uk/supplierspend,Thanet District Council,14/06/2016,409906,538.56,,Morgan Jones Ltd,MOR001,Corporate Resources and S151,Revenue,Agency Staff,Human Resources,
http://thanet.gov.uk/supplierspend,Thanet District Council,14/06/2016,409990,523.60,,Morgan Jones Ltd,MOR001,Corporate Resources and S151,Revenue,Agency Staff,Human Resources,
http://thanet.gov.uk/supplierspend,Thanet District Council,14/06/2016,409930,575.00,,Mr Darren Osborne,OSB008,Corporate Resources and S151,Revenue,Cleaning & Domestic Supplies,Cleaning And Janitorial,
http://thanet.gov.uk/supplierspend,Thanet District Council,14/06/2016,409930,47.50,,Mr Darren Osborne,OSB008,Community Services,Revenue,Cleaning & Domestic Supplies,Cleaning And Janitorial,
http://thanet.gov.uk/supplierspend,Thanet District Council,14/06/2016,409930,30.00,,Mr Darren Osborne,OSB008,Operational Services,Revenue,Cleaning & Domestic Supplies,Cleaning And Janitorial,
http://thanet.gov.uk/supplierspend,Thanet District Council,14/06/2016,410573,3034.07,,Mr Peter Lawrence,LAW025,Corporate Resources and S151,Balance Sheet,Capital Exp-Non Council Assets,Grants,
http://thanet.gov.uk/supplierspend,Thanet District Council,14/06/2016,409643,8621.77,,North Kent Architecture Centre Ltd,NKA001,Community Services,Revenue,Services,Consultancy,
http://thanet.gov.uk/supplierspend,Thanet District Council,14/06/2016,409780,516.81,,Ntm-Gb Limited,NTM001,Operational Services,Revenue,Direct Transport Costs,Vehicle Management,
http://thanet.gov.uk/supplierspend,Thanet District Council,14/06/2016,409636,439.92,,Ocs Group Uk Ltd T/A Fountains,OCS005,Operational Services,Revenue,"Equip, Furniture And Materials",Cleaning And Janitorial,
http://thanet.gov.uk/supplierspend,Thanet District Council,14/06/2016,409951,300.00,,Office Of Communications,OFF006,Operational Services,Revenue,Services,ICT,
http://thanet.gov.uk/supplierspend,Thanet District Council,14/06/2016,409909,503.13,,Osborne Richardson Limited,OSB009,Community Services,Revenue,Agency Staff,Human Resources,
http://thanet.gov.uk/supplierspend,Thanet District Council,14/06/2016,409868,2420.00,,Paramount Ind Property Services Llp,PAR074,Community Services,Revenue,Services,Rent Deposits,
http://thanet.gov.uk/supplierspend,Thanet District Council,14/06/2016,409956,876.00,,Profile Security Services Limited,PRO018,Operational Services,Revenue,Services,Facilities And Management Serv,
http://thanet.gov.uk/supplierspend,Thanet District Council,14/06/2016,409151,2698.33,,Re-Cog Limited,REC005,Community Services,Revenue,Services,Building Construction Material,
http://thanet.gov.uk/supplierspend,Thanet District Council,14/06/2016,409899,350.00,,Safety & Management Solutions Ltd,SAF013,Operational Services,Revenue,Training,Health And Safety,
http://thanet.gov.uk/supplierspend,Thanet District Council,14/06/2016,409786,864.00,,Sellick Partnership Ltd,SEL011,Corporate Governance,Revenue,Agency Staff,Human Resources,
http://thanet.gov.uk/supplierspend,Thanet District Council,14/06/2016,409787,864.00,,Sellick Partnership Ltd,SEL011,Corporate Governance,Revenue,Agency Staff,Human Resources,
http://thanet.gov.uk/supplierspend,Thanet District Council,14/06/2016,409878,432.00,,Sellick Partnership Ltd,SEL011,Corporate Governance,Revenue,Agency Staff,Human Resources,
http://thanet.gov.uk/supplierspend,Thanet District Council,14/06/2016,410314,360.00,,Sellick Partnership Ltd,SEL011,Corporate Governance,Revenue,Agency Staff,Human Resources,
http://thanet.gov.uk/supplierspend,Thanet District Council,14/06/2016,410474,6476.70,,South East Adaptations Limited,SOU026,Corporate Resources and S151,Balance Sheet,Capital Exp-Non Council Assets,Grants,
http://thanet.gov.uk/supplierspend,Thanet District Council,14/06/2016,410468,15470.00,,South East Building Company Limited,SEB001,Corporate Resources and S151,Balance Sheet,Capital Exp-Non Council Assets,Grants,
http://thanet.gov.uk/supplierspend,Thanet District Council,14/06/2016,409817,1909.81,,Southern Electric,SEL007,Community Services,Revenue,Energy Costs,Utilities,
http://thanet.gov.uk/supplierspend,Thanet District Council,14/06/2016,409818,5307.91,,Southern Electric,SEL007,Community Services,Revenue,Energy Costs,Utilities,
http://thanet.gov.uk/supplierspend,Thanet District Council,14/06/2016,409819,14892.56,,Southern Electric,SEL007,Community Services,Revenue,Energy Costs,Utilities,
http://thanet.gov.uk/supplierspend,Thanet District Council,14/06/2016,409852,3190.62,,Southern Electric,SEL007,Community Services,Revenue,Energy Costs,Utilities,
http://thanet.gov.uk/supplierspend,Thanet District Council,14/06/2016,409853,1384.93,,Southern Electric,SEL007,Community Services,Revenue,Energy Costs,Utilities,
http://thanet.gov.uk/supplierspend,Thanet District Council,14/06/2016,409862,1107.16,,Southern Electric,SEL007,Community Services,Revenue,Energy Costs,Utilities,
http://thanet.gov.uk/supplierspend,Thanet District Council,14/06/2016,409864,280.90,,Southern Electric,SEL007,Operational Services,Revenue,Energy Costs,Utilities,
http://thanet.gov.uk/supplierspend,Thanet District Council,14/06/2016,410088,257.46,,Southern Electric,SEL007,Operational Services,Revenue,Energy Costs,Utilities,
http://thanet.gov.uk/supplierspend,Thanet District Council,14/06/2016,410095,973.83,,Southern Electric,SEL007,Community Services,Revenue,Energy Costs,Utilities,
http://thanet.gov.uk/supplierspend,Thanet District Council,14/06/2016,410096,541.22,,Southern Electric,SEL007,Operational Services,Revenue,Energy Costs,Utilities,
http://thanet.gov.uk/supplierspend,Thanet District Council,14/06/2016,410006,615.00,,Ssl247 Ltd,SSL001,East Kent Shared Services,Revenue,Communications & Computing,ICT,
http://thanet.gov.uk/supplierspend,Thanet District Council,14/06/2016,410551,1178.78,,Templars Estates Ltd,TEM005,Corporate Resources and S151,Balance Sheet,Capital Exp-Non Council Assets,Grants,
http://thanet.gov.uk/supplierspend,Thanet District Council,14/06/2016,410552,1413.86,,Templars Estates Ltd,TEM005,Corporate Resources and S151,Balance Sheet,Capital Exp-Non Council Assets,Grants,
http://thanet.gov.uk/supplierspend,Thanet District Council,14/06/2016,410554,623.79,,Templars Estates Ltd,TEM005,Corporate Resources and S151,Balance Sheet,Capital Exp-Non Council Assets,Grants,
http://thanet.gov.uk/supplierspend,Thanet District Council,14/06/2016,410555,572.76,,Templars Estates Ltd,TEM005,Corporate Resources and S151,Balance Sheet,Capital Exp-Non Council Assets,Grants,
http://thanet.gov.uk/supplierspend,Thanet District Council,14/06/2016,410557,2343.83,,Templars Estates Ltd,TEM005,Corporate Resources and S151,Balance Sheet,Capital Exp-Non Council Assets,Grants,
http://thanet.gov.uk/supplierspend,Thanet District Council,14/06/2016,410559,1417.86,,Templars Estates Ltd,TEM005,Corporate Resources and S151,Balance Sheet,Capital Exp-Non Council Assets,Grants,
http://thanet.gov.uk/supplierspend,Thanet District Council,14/06/2016,410561,664.40,,Templars Estates Ltd,TEM005,Corporate Resources and S151,Balance Sheet,Capital Exp-Non Council Assets,Grants,
http://thanet.gov.uk/supplierspend,Thanet District Council,14/06/2016,410563,607.19,,Templars Estates Ltd,TEM005,Corporate Resources and S151,Balance Sheet,Capital Exp-Non Council Assets,Grants,
http://thanet.gov.uk/supplierspend,Thanet District Council,14/06/2016,408311,4257.00,,Tetlow King Planning Limited,TET002,Community Services,Revenue,Services,Consultancy,
http://thanet.gov.uk/supplierspend,Thanet District Council,14/06/2016,410022,-480.00,,Tetlow King Planning Limited,TET002,Community Services,Revenue,Services,Consultancy,
http://thanet.gov.uk/supplierspend,Thanet District Council,14/06/2016,409246,3479.16,,The Glenwood Hotel,GLE007,Community Services,Revenue,Services,Housing Management,
http://thanet.gov.uk/supplierspend,Thanet District Council,14/06/2016,409980,3354.15,,The Glenwood Hotel,GLE007,Community Services,Revenue,Services,Housing Management,
http://thanet.gov.uk/supplierspend,Thanet District Council,14/06/2016,410026,3562.50,,The Glenwood Hotel,GLE007,Community Services,Revenue,Services,Housing Management,
http://thanet.gov.uk/supplierspend,Thanet District Council,14/06/2016,410182,361.25,,Trinity Resource Centre,TRI008,Corporate Governance,Revenue,Rents,Facilities And Management Serv,
http://thanet.gov.uk/supplierspend,Thanet District Council,14/06/2016,410470,11497.46,,Trueden Disability Adaptations Ltd,TRU012,Corporate Resources and S151,Balance Sheet,Capital Exp-Non Council Assets,Grants,
http://thanet.gov.uk/supplierspend,Thanet District Council,14/06/2016,410472,7554.80,,Trueden Disability Adaptations Ltd,TRU012,Corporate Resources and S151,Balance Sheet,Capital Exp-Non Council Assets,Grants,
http://thanet.gov.uk/supplierspend,Thanet District Council,14/06/2016,409808,1497.30,,Tyco Fire & Integrated Sol (Uk) Ltd,TYC001,Corporate Resources and S151,Revenue,"Repairs,  Alter & Mtce - Build",Facilities And Management Serv,
http://thanet.gov.uk/supplierspend,Thanet District Council,14/06/2016,410062,280.06,,Viridor Waste Management Ltd,VIR003,Corporate Resources and S151,Revenue,Private Contractors,Environmental Services,
http://thanet.gov.uk/supplierspend,Thanet District Council,14/06/2016,410115,592.96,,Viridor Waste Management Ltd,VIR003,Corporate Resources and S151,Revenue,Private Contractors,Environmental Services,
http://thanet.gov.uk/supplierspend,Thanet District Council,14/06/2016,409656,1800.00,,Visit Kent Ltd,VIS005,Community Services,Revenue,Grants & Subscriptions,Arts And Leisure Services,
http://thanet.gov.uk/supplierspend,Thanet District Council,14/06/2016,409767,1000.00,,Visit Kent Ltd,VIS005,Community Services,Revenue,Miscellaneous Expenses,Arts And Leisure Services,
http://thanet.gov.uk/supplierspend,Thanet District Council,14/06/2016,409875,420.00,,Westward Ho Hotel,WES055,Community Services,Revenue,Services,Housing Management,
http://thanet.gov.uk/supplierspend,Thanet District Council,15/06/2016,409653,540.00,,All Access Ltd,ALL031,Corporate Resources and S151,Balance Sheet,Rechargeable Works,Building Construction Material,
http://thanet.gov.uk/supplierspend,Thanet District Council,15/06/2016,409802,600.00,,East Kent Training,EKT003,Operational Services,Revenue,Training,Human Resources,
http://thanet.gov.uk/supplierspend,Thanet District Council,15/06/2016,410733,1000.00,,Minster Twinning Association,MIN020,Community Services,Revenue,Grants & Subscriptions,Grants,
http://thanet.gov.uk/supplierspend,Thanet District Council,19/06/2016,N/A,335.28,,REDACTED PERSONAL DATA,N/A,Community Services,Revenue,Car Allowances,Non Trade Payee,
http://thanet.gov.uk/supplierspend,Thanet District Council,19/06/2016,N/A,331.64,,REDACTED PERSONAL DATA,N/A,Operational Services,Revenue,Car Allowances,Non Trade Payee,
http://thanet.gov.uk/supplierspend,Thanet District Council,19/06/2016,N/A,276.37,,REDACTED PERSONAL DATA,N/A,Operational Services,Revenue,Car Allowances,Non Trade Payee,
http://thanet.gov.uk/supplierspend,Thanet District Council,19/06/2016,N/A,288.05,,REDACTED PERSONAL DATA,N/A,Operational Services,Revenue,Car Allowances,Non Trade Payee,
http://thanet.gov.uk/supplierspend,Thanet District Council,19/06/2016,N/A,646.93,,REDACTED PERSONAL DATA,N/A,East Kent Shared Services,Revenue,Car Allowances,Non Trade Payee,
http://thanet.gov.uk/supplierspend,Thanet District Council,19/06/2016,N/A,446.86,,REDACTED PERSONAL DATA,N/A,East Kent Shared Services,Revenue,Car Allowances,Non Trade Payee,
http://thanet.gov.uk/supplierspend,Thanet District Council,19/06/2016,N/A,282.60,,REDACTED PERSONAL DATA,N/A,East Kent Shared Services,Revenue,Car Allowances,Non Trade Payee,
http://thanet.gov.uk/supplierspend,Thanet District Council,20/06/2016,410939,246362.00,,Kent & Medway Towns Fire Authority,KMT001,Corporate Resources and S151,Balance Sheet,Collection Fund - Preceptors,Various Cats - Public Sector,
http://thanet.gov.uk/supplierspend,Thanet District Council,20/06/2016,410940,3894066.00,,Kent County Council,KCC022,Corporate Resources and S151,Balance Sheet,Collection Fund - Preceptors,Various Cats - Public Sector,
http://thanet.gov.uk/supplierspend,Thanet District Council,20/06/2016,410941,525761.00,,Kent Police & Crime Commissioner,KPA003,Corporate Resources and S151,Balance Sheet,Collection Fund - Preceptors,Various Cats - Public Sector,
http://thanet.gov.uk/supplierspend,Thanet District Council,21/06/2016,410477,6436.30,,A& C Pumps Ltd,ACP001,Operational Services,Revenue,"Equip, Furniture And Materials",Building Construction Material,
http://thanet.gov.uk/supplierspend,Thanet District Council,21/06/2016,410432,347.04,,Academia Ltd,ACA008,East Kent Shared Services,Revenue,"Equip, Furniture And Materials",ICT,
http://thanet.gov.uk/supplierspend,Thanet District Council,21/06/2016,409785,617.53,,Adecco Uk Ltd,ADE005,Chief Executive,Revenue,Agency Staff,Human Resources,
http://thanet.gov.uk/supplierspend,Thanet District Council,21/06/2016,410399,451.59,,Albion Fencing&Construction Kent Ltd,ALB005,Operational Services,Revenue,"Repairs,  Alter & Mtce - Build",Building Construction Material,
http://thanet.gov.uk/supplierspend,Thanet District Council,21/06/2016,410400,7830.66,,Albion Fencing&Construction Kent Ltd,ALB005,Operational Services,Revenue,"Repairs,  Alter & Mtce - Build",Building Construction Material,
http://thanet.gov.uk/supplierspend,Thanet District Council,21/06/2016,409877,814.80,,Amenity Horticultural Serv Ltd,AME001,Operational Services,Revenue,"Equip, Furniture And Materials",Horticultural,
http://thanet.gov.uk/supplierspend,Thanet District Council,21/06/2016,410892,2055.00,,Ascendit Lifts Ltd,ASC001,Corporate Resources and S151,Balance Sheet,Capital Exp-Non Council Assets,Grants,
http://thanet.gov.uk/supplierspend,Thanet District Council,21/06/2016,410887,1500.00,,Birchington Parish Council,BIR001,Operational Services,Revenue,Services,Various Cats - Public Sector,
http://thanet.gov.uk/supplierspend,Thanet District Council,21/06/2016,410575,1910.00,,Bowman Maintenance Contracting,BMC001,Operational Services,Revenue,"Equip, Furniture And Materials",Building Construction Material,
http://thanet.gov.uk/supplierspend,Thanet District Council,21/06/2016,410898,24296.40,,Bramling Construction Ltd,BRA020,Corporate Resources and S151,Balance Sheet,Capital Exp-Non Council Assets,Grants,
http://thanet.gov.uk/supplierspend,Thanet District Council,21/06/2016,410903,8618.30,,Bramling Construction Ltd,BRA020,Corporate Resources and S151,Balance Sheet,Capital Exp-Non Council Assets,Grants,
http://thanet.gov.uk/supplierspend,Thanet District Council,21/06/2016,410984,619.69,,British Gas Trading Limited,GAS001,Community Services,Revenue,Services,Utilities,
http://thanet.gov.uk/supplierspend,Thanet District Council,21/06/2016,410891,3000.00,,Broadstairs & St Peters Town Council,BRO005,Operational Services,Revenue,Services,Various Cats - Public Sector,
http://thanet.gov.uk/supplierspend,Thanet District Council,21/06/2016,410341,1654.65,,Buckingham Futures Limited,BUC010,Community Services,Revenue,Agency Staff,Human Resources,
http://thanet.gov.uk/supplierspend,Thanet District Council,21/06/2016,410395,838.95,,Buckingham Futures Limited,BUC010,Community Services,Revenue,Agency Staff,Human Resources,
http://thanet.gov.uk/supplierspend,Thanet District Council,21/06/2016,410057,2330.96,,Canon (Uk) Ltd,CAN021,Corporate Resources and S151,Revenue,"Equip, Furniture And Materials",Facilities And Management Serv,
http://thanet.gov.uk/supplierspend,Thanet District Council,21/06/2016,410486,3964.96,,Canterbury Christ Church University,CAN006,Corporate Resources and S151,Revenue,Energy Costs,Various Categories,
http://thanet.gov.uk/supplierspend,Thanet District Council,21/06/2016,410992,1706.06,,Canterbury Christ Church University,CAN006,Corporate Resources and S151,Revenue,Energy Costs,Various Categories,
http://thanet.gov.uk/supplierspend,Thanet District Council,21/06/2016,410054,1707.00,,Capita Business Services Ltd,CAP001,Corporate Resources and S151,Revenue,Communications & Computing,Human Resources,
http://thanet.gov.uk/supplierspend,Thanet District Council,21/06/2016,410143,307.50,,Channel Commercials Plc,CCO001,Operational Services,Revenue,Direct Transport Costs,Vehicle Management,
http://thanet.gov.uk/supplierspend,Thanet District Council,21/06/2016,410298,770.40,,Channel Commercials Plc,CCO001,Operational Services,Revenue,Direct Transport Costs,Vehicle Management,
http://thanet.gov.uk/supplierspend,Thanet District Council,21/06/2016,410549,8000.00,,Civica Uk Ltd,CIV003,East Kent Shared Services,Revenue,Communications & Computing,ICT,
http://thanet.gov.uk/supplierspend,Thanet District Council,21/06/2016,410424,1781.25,,Clarion Events Limited,CLA041,Operational Services,Revenue,Miscellaneous Expenses,Maritime Services,
http://thanet.gov.uk/supplierspend,Thanet District Council,21/06/2016,410998,350.00,,Cliftonville Community Centre,CLI035,Corporate Governance,Revenue,Rents,Facilities And Management Serv,
http://thanet.gov.uk/supplierspend,Thanet District Council,21/06/2016,410890,1500.00,,Cliftonville Partnership,CLI019,Operational Services,Revenue,Services,Grants,
http://thanet.gov.uk/supplierspend,Thanet District Council,21/06/2016,410151,2874.90,,Cobalt Telephone Technologies Ltd,COB002,Operational Services,Revenue,Services,ICT,
http://thanet.gov.uk/supplierspend,Thanet District Council,21/06/2016,410412,775.00,,Dave Mannings Painting Cont Ltd,DAV035,Operational Services,Revenue,Fixtures & Fittings,Construction-Repair And Maint,
http://thanet.gov.uk/supplierspend,Thanet District Council,21/06/2016,410023,450.06,,Dennis Eagle Ltd,DEN005,Operational Services,Revenue,Direct Transport Costs,Vehicle Management,
http://thanet.gov.uk/supplierspend,Thanet District Council,21/06/2016,410175,570.26,,Dennis Eagle Ltd,DEN005,Operational Services,Revenue,Direct Transport Costs,Vehicle Management,
http://thanet.gov.uk/supplierspend,Thanet District Council,21/06/2016,410995,900.00,,Distinctive Systems Ltd,DIS015,Operational Services,Revenue,Communications & Computing,Vehicle Management,
http://thanet.gov.uk/supplierspend,Thanet District Council,21/06/2016,410007,300.00,,District Surveyors Association Limited,DIS002,Community Services,Revenue,Expenses,Financial Services,
http://thanet.gov.uk/supplierspend,Thanet District Council,21/06/2016,410008,300.00,,District Surveyors Association Limited,DIS002,Community Services,Revenue,Expenses,Financial Services,
http://thanet.gov.uk/supplierspend,Thanet District Council,21/06/2016,410009,300.00,,District Surveyors Association Limited,DIS002,Community Services,Revenue,Expenses,Financial Services,
http://thanet.gov.uk/supplierspend,Thanet District Council,21/06/2016,410363,360.00,,Dover Counselling Centre,DOV014,East Kent Shared Services,Revenue,Employee Related Schemes,Healthcare,
http://thanet.gov.uk/supplierspend,Thanet District Council,21/06/2016,410152,5532.00,,Downfast Demolition & Salvage Ltd,DOW001,Corporate Resources and S151,Revenue,"Repairs,  Alter & Mtce - Build",Building Construction Material,
http://thanet.gov.uk/supplierspend,Thanet District Council,21/06/2016,410994,1725.00,,Dr Alexander Marshall,MAR100,Operational Services,Revenue,Services,Cemetery And Crematorium,
http://thanet.gov.uk/supplierspend,Thanet District Council,21/06/2016,410996,1300.00,,Dr R K Chhabra,CHH001,Operational Services,Revenue,Services,Cemetery And Crematorium,
http://thanet.gov.uk/supplierspend,Thanet District Council,21/06/2016,409955,950.00,,Eagle Security Alarms Ltd,EAG005,Operational Services,Revenue,"Repairs,  Alter & Mtce - Build",Facilities And Management Serv,
http://thanet.gov.uk/supplierspend,Thanet District Council,21/06/2016,410576,255.03,,Edf Energy Customer Field Services,EDF003,Operational Services,Revenue,Energy Costs,Utilities,
http://thanet.gov.uk/supplierspend,Thanet District Council,21/06/2016,410893,1124.59,,Family Mosaic Housing,FAM001,Corporate Resources and S151,Balance Sheet,Capital Exp-Non Council Assets,Housing Management,
http://thanet.gov.uk/supplierspend,Thanet District Council,21/06/2016,410895,1260.93,,Family Mosaic Housing,FAM001,Corporate Resources and S151,Balance Sheet,Capital Exp-Non Council Assets,Housing Management,
http://thanet.gov.uk/supplierspend,Thanet District Council,21/06/2016,410896,1239.40,,Family Mosaic Housing,FAM001,Corporate Resources and S151,Balance Sheet,Capital Exp-Non Council Assets,Housing Management,
http://thanet.gov.uk/supplierspend,Thanet District Council,21/06/2016,410899,3004.00,,Family Mosaic Housing,FAM001,Corporate Resources and S151,Balance Sheet,Capital Exp-Non Council Assets,Housing Management,
http://thanet.gov.uk/supplierspend,Thanet District Council,21/06/2016,410900,2688.84,,Family Mosaic Housing,FAM001,Corporate Resources and S151,Balance Sheet,Capital Exp-Non Council Assets,Housing Management,
http://thanet.gov.uk/supplierspend,Thanet District Council,21/06/2016,410902,1038.20,,Family Mosaic Housing,FAM001,Corporate Resources and S151,Balance Sheet,Capital Exp-Non Council Assets,Housing Management,
http://thanet.gov.uk/supplierspend,Thanet District Council,21/06/2016,410037,1085.00,,Florence Court Hotel,FLO003,Community Services,Revenue,Services,Housing Management,
http://thanet.gov.uk/supplierspend,Thanet District Council,21/06/2016,410524,409.95,,Fuel Oils Kent,FUE001,Operational Services,Revenue,"Equip, Furniture And Materials",Utilities,
http://thanet.gov.uk/supplierspend,Thanet District Council,21/06/2016,410993,3000.00,,Genecon Limited,GEN013,Community Services,Revenue,Services,Consultancy,
http://thanet.gov.uk/supplierspend,Thanet District Council,21/06/2016,410153,900.00,,Gulliver'S Truck Hire Limited,GUL001,Operational Services,Revenue,Cont Hire & Operating Lease,Vehicle Management,
http://thanet.gov.uk/supplierspend,Thanet District Council,21/06/2016,410476,900.00,,Gulliver'S Truck Hire Limited,GUL001,Operational Services,Revenue,Cont Hire & Operating Lease,Vehicle Management,
http://thanet.gov.uk/supplierspend,Thanet District Council,21/06/2016,409831,332.23,,Hags-Smp Limited,HAG004,Operational Services,Revenue,"Repairs,  Alter & Mtce - Build",Sports Playground Equipment,
http://thanet.gov.uk/supplierspend,Thanet District Council,21/06/2016,410012,740.63,,Haynes Of Maidstone Ltd,HAY008,Operational Services,Revenue,"Equip, Furniture And Materials",Vehicle Management,
http://thanet.gov.uk/supplierspend,Thanet District Council,21/06/2016,410013,453.00,,Haynes Of Maidstone Ltd,HAY008,Operational Services,Revenue,"Equip, Furniture And Materials",Vehicle Management,
http://thanet.gov.uk/supplierspend,Thanet District Council,21/06/2016,410015,1459.83,,Haynes Of Maidstone Ltd,HAY008,Operational Services,Revenue,"Equip, Furniture And Materials",Vehicle Management,
http://thanet.gov.uk/supplierspend,Thanet District Council,21/06/2016,410427,801.79,,Haynes Of Maidstone Ltd,HAY008,Operational Services,Revenue,Direct Transport Costs,Vehicle Management,
http://thanet.gov.uk/supplierspend,Thanet District Council,21/06/2016,410440,1095.31,,Haynes Of Maidstone Ltd,HAY008,Operational Services,Revenue,Direct Transport Costs,Vehicle Management,
http://thanet.gov.uk/supplierspend,Thanet District Council,21/06/2016,409815,375.00,,Hi Way Services Ltd,HIW002,Operational Services,Revenue,"Repairs,  Alter & Mtce - Build",Highway Equipment And Material,
http://thanet.gov.uk/supplierspend,Thanet District Council,21/06/2016,410401,791.66,,Hilton Cabinet Co Ltd,HIL002,Operational Services,Revenue,"Equip, Furniture And Materials",Furniture And Soft Furnishings,
http://thanet.gov.uk/supplierspend,Thanet District Council,21/06/2016,410142,1117.94,,Hr Go (Kent) Ltd,HRG001,Operational Services,Revenue,Agency Staff,Human Resources,
http://thanet.gov.uk/supplierspend,Thanet District Council,21/06/2016,410402,2084.45,,Hr Go (Kent) Ltd,HRG001,Operational Services,Revenue,Agency Staff,Human Resources,
http://thanet.gov.uk/supplierspend,Thanet District Council,21/06/2016,410403,434.02,,Hr Go (Kent) Ltd,HRG001,Community Services,Revenue,Agency Staff,Human Resources,
http://thanet.gov.uk/supplierspend,Thanet District Council,21/06/2016,410404,695.88,,Hr Go (Kent) Ltd,HRG001,Operational Services,Revenue,Agency Staff,Human Resources,
http://thanet.gov.uk/supplierspend,Thanet District Council,21/06/2016,410405,1135.24,,Hr Go (Kent) Ltd,HRG001,Operational Services,Revenue,Agency Staff,Human Resources,
http://thanet.gov.uk/supplierspend,Thanet District Council,21/06/2016,410406,1747.33,,Hr Go (Kent) Ltd,HRG001,Operational Services,Revenue,Agency Staff,Human Resources,
http://thanet.gov.uk/supplierspend,Thanet District Council,21/06/2016,410407,1829.52,,Hr Go (Kent) Ltd,HRG001,Operational Services,Revenue,Agency Staff,Human Resources,
http://thanet.gov.uk/supplierspend,Thanet District Council,21/06/2016,410409,628.68,,Hr Go (Kent) Ltd,HRG001,Operational Services,Revenue,Agency Staff,Human Resources,
http://thanet.gov.uk/supplierspend,Thanet District Council,21/06/2016,410279,1391.21,,Hydraquip Hose & Hydraulics,HYD003,Operational Services,Revenue,"Equip, Furniture And Materials",Vehicle Management,
http://thanet.gov.uk/supplierspend,Thanet District Council,21/06/2016,410159,1100.00,,Infrastructure Developments Limited,INF011,Operational Services,Revenue,"Repairs,  Alter & Mtce - Build",Construction-Repair And Maint,
http://thanet.gov.uk/supplierspend,Thanet District Council,21/06/2016,410351,18000.00,,Jadu Limited,JAD003,East Kent Shared Services,Revenue,Communications & Computing,ICT,
http://thanet.gov.uk/supplierspend,Thanet District Council,21/06/2016,409958,419.72,,Jewson Ltd,JEW001,Operational Services,Revenue,"Equip, Furniture And Materials",Building Construction Material,
http://thanet.gov.uk/supplierspend,Thanet District Council,21/06/2016,410441,350.00,,John Reeve (Plant Hire) Ltd,REE013,Operational Services,Revenue,"Repairs,  Alter & Mtce - Build",Vehicle Management,
http://thanet.gov.uk/supplierspend,Thanet District Council,21/06/2016,410970,10485.12,,Kent County Council,KCC002,Community Services,Revenue,Grants & Subscriptions,Various Cats - Public Sector,
http://thanet.gov.uk/supplierspend,Thanet District Council,21/06/2016,410318,30474.90,,Kent County Council (Kcs),KCC003,Operational Services,Revenue,Direct Transport Costs,Facilities And Management Serv,
http://thanet.gov.uk/supplierspend,Thanet District Council,21/06/2016,410319,2397.40,,Kent County Council (Kcs),KCC003,Operational Services,Revenue,"Equip, Furniture And Materials",Facilities And Management Serv,
http://thanet.gov.uk/supplierspend,Thanet District Council,21/06/2016,410320,2848.97,,Kent County Council (Kcs),KCC003,Operational Services,Revenue,"Equip, Furniture And Materials",Facilities And Management Serv,
http://thanet.gov.uk/supplierspend,Thanet District Council,21/06/2016,410321,30809.70,,Kent County Council (Kcs),KCC003,Operational Services,Revenue,Direct Transport Costs,Facilities And Management Serv,
http://thanet.gov.uk/supplierspend,Thanet District Council,21/06/2016,410425,5553.23,,Kent County Council (Kcs),KCC003,Operational Services,Revenue,Energy Costs,Facilities And Management Serv,
http://thanet.gov.uk/supplierspend,Thanet District Council,21/06/2016,410498,5533.96,,Kent County Council (Kcs),KCC003,Corporate Resources and S151,Revenue,Energy Costs,Facilities And Management Serv,
http://thanet.gov.uk/supplierspend,Thanet District Council,21/06/2016,410499,2608.39,,Kent County Council (Kcs),KCC003,Operational Services,Revenue,Energy Costs,Facilities And Management Serv,
http://thanet.gov.uk/supplierspend,Thanet District Council,21/06/2016,410767,1435.18,,Kent County Council (Kcs),KCC003,Operational Services,Revenue,Energy Costs,Facilities And Management Serv,
http://thanet.gov.uk/supplierspend,Thanet District Council,21/06/2016,410768,1020.01,,Kent County Council (Kcs),KCC003,Corporate Resources and S151,Revenue,Energy Costs,Facilities And Management Serv,
http://thanet.gov.uk/supplierspend,Thanet District Council,21/06/2016,410769,1347.75,,Kent County Council (Kcs),KCC003,Corporate Resources and S151,Revenue,Energy Costs,Facilities And Management Serv,
http://thanet.gov.uk/supplierspend,Thanet District Council,21/06/2016,410770,1626.98,,Kent County Council (Kcs),KCC003,Operational Services,Revenue,Energy Costs,Facilities And Management Serv,
http://thanet.gov.uk/supplierspend,Thanet District Council,21/06/2016,410781,1158.13,,Kent County Council (Kcs),KCC003,Operational Services,Revenue,Energy Costs,Facilities And Management Serv,
http://thanet.gov.uk/supplierspend,Thanet District Council,21/06/2016,410782,945.77,,Kent County Council (Kcs),KCC003,Operational Services,Revenue,Energy Costs,Facilities And Management Serv,
http://thanet.gov.uk/supplierspend,Thanet District Council,21/06/2016,410783,1328.83,,Kent County Council (Kcs),KCC003,Operational Services,Revenue,Energy Costs,Facilities And Management Serv,
http://thanet.gov.uk/supplierspend,Thanet District Council,21/06/2016,410929,1468.90,,Kent County Council (Kcs),KCC003,Operational Services,Revenue,Energy Costs,Facilities And Management Serv,
http://thanet.gov.uk/supplierspend,Thanet District Council,21/06/2016,410931,942.24,,Kent County Council (Kcs),KCC003,Corporate Resources and S151,Revenue,Energy Costs,Facilities And Management Serv,
http://thanet.gov.uk/supplierspend,Thanet District Council,21/06/2016,410936,691.73,,Kent County Council (Kcs),KCC003,Corporate Resources and S151,Revenue,Energy Costs,Facilities And Management Serv,
http://thanet.gov.uk/supplierspend,Thanet District Council,21/06/2016,410336,6628.85,,Kingdom Security Limited,KIN039,Operational Services,Revenue,Services,Street And Traffic Management,
http://thanet.gov.uk/supplierspend,Thanet District Council,21/06/2016,410327,1075.17,,Landscape Supply Company,LAN014,Operational Services,Revenue,"Equip, Furniture And Materials",Horticultural,
http://thanet.gov.uk/supplierspend,Thanet District Council,21/06/2016,410304,4233.88,,Level 3 Communications (Uk) Ltd,LEV005,Corporate Resources and S151,Balance Sheet,Telephone Holding Account,ICT,
http://thanet.gov.uk/supplierspend,Thanet District Council,21/06/2016,410986,974.25,,Lorica Insurance Brokers Limited,LOR005,Corporate Resources and S151,Balance Sheet,Insurance Holding Account,Financial Services,
http://thanet.gov.uk/supplierspend,Thanet District Council,21/06/2016,410727,564.00,,Lyreco Uk Limited,LYR001,Corporate Resources and S151,Revenue,"Print, Stat And Gen Off Exps",Stationery,
http://thanet.gov.uk/supplierspend,Thanet District Council,21/06/2016,410146,326.35,,Main Man Supplies Ltd,MAI001,Operational Services,Revenue,"Clothes, Uniforms & Laundry",Clothing,
http://thanet.gov.uk/supplierspend,Thanet District Council,21/06/2016,410161,1023.40,,Main Man Supplies Ltd,MAI001,Operational Services,Revenue,"Clothes, Uniforms & Laundry",Clothing,
http://thanet.gov.uk/supplierspend,Thanet District Council,21/06/2016,410393,335.90,,Main Man Supplies Ltd,MAI001,Operational Services,Revenue,"Equip, Furniture And Materials",Clothing,
http://thanet.gov.uk/supplierspend,Thanet District Council,21/06/2016,410488,810.00,,Main Man Supplies Ltd,MAI001,Operational Services,Revenue,"Clothes, Uniforms & Laundry",Clothing,
http://thanet.gov.uk/supplierspend,Thanet District Council,21/06/2016,410888,3000.00,,Margate Town Team Cic,MTO001,Operational Services,Revenue,Services,Grants,
http://thanet.gov.uk/supplierspend,Thanet District Council,21/06/2016,410290,1150.00,,Maxwells Grounds Maintenance Ltd,MAX002,Operational Services,Revenue,"Repairs,  Alter & Mtce - Build",Construction-Repair And Maint,
http://thanet.gov.uk/supplierspend,Thanet District Council,21/06/2016,410353,268.83,,Mears Ltd,MEA003,Operational Services,Revenue,"Repairs,  Alter & Mtce - Build",Construction-Repair And Maint,
http://thanet.gov.uk/supplierspend,Thanet District Council,21/06/2016,410354,754.26,,Mears Ltd,MEA003,Operational Services,Revenue,"Repairs,  Alter & Mtce - Build",Construction-Repair And Maint,
http://thanet.gov.uk/supplierspend,Thanet District Council,21/06/2016,410505,5763.91,,Med Clean South Ltd,MED015,Operational Services,Revenue,Cleaning & Domestic Supplies,Cleaning And Janitorial,
http://thanet.gov.uk/supplierspend,Thanet District Council,21/06/2016,410508,1524.75,,Med Clean South Ltd,MED015,Operational Services,Revenue,"Repairs,  Alter & Mtce - Build",Cleaning And Janitorial,
http://thanet.gov.uk/supplierspend,Thanet District Council,21/06/2016,410324,418.88,,Morgan Jones Ltd,MOR001,Corporate Resources and S151,Revenue,Agency Staff,Human Resources,
http://thanet.gov.uk/supplierspend,Thanet District Council,21/06/2016,410325,362.78,,Morgan Jones Ltd,MOR001,Corporate Resources and S151,Revenue,Agency Staff,Human Resources,
http://thanet.gov.uk/supplierspend,Thanet District Council,21/06/2016,410326,346.50,,Morgan Jones Ltd,MOR001,Community Services,Revenue,Agency Staff,Human Resources,
http://thanet.gov.uk/supplierspend,Thanet District Council,21/06/2016,410759,623.63,,Morgan Jones Ltd,MOR001,Community Services,Revenue,Agency Staff,Human Resources,
http://thanet.gov.uk/supplierspend,Thanet District Council,21/06/2016,410760,508.64,,Morgan Jones Ltd,MOR001,Corporate Resources and S151,Revenue,Agency Staff,Human Resources,
http://thanet.gov.uk/supplierspend,Thanet District Council,21/06/2016,410452,4375.00,,Moriyama Limited,MOR031,East Kent Shared Services,Revenue,Communications & Computing,Human Resources,
http://thanet.gov.uk/supplierspend,Thanet District Council,21/06/2016,407131,-265.60,,Neopost Ltd,NEO003,Corporate Resources and S151,Revenue,"Print, Stat And Gen Off Exps",Mail Services,
http://thanet.gov.uk/supplierspend,Thanet District Council,21/06/2016,410289,304.25,,Neopost Ltd,NEO003,Corporate Resources and S151,Revenue,"Equip, Furniture And Materials",Mail Services,
http://thanet.gov.uk/supplierspend,Thanet District Council,21/06/2016,410531,330.99,,Npower Direct Limited,NPO003,Community Services,Revenue,Energy Costs,Utilities,
http://thanet.gov.uk/supplierspend,Thanet District Council,21/06/2016,410384,4860.00,,Oscar Associates (Uk) Limited,OSC001,East Kent Shared Services,Revenue,Agency Staff,ICT,
http://thanet.gov.uk/supplierspend,Thanet District Council,21/06/2016,410724,910.86,,Palmstead Nurseries Ltd,PAL015,Operational Services,Revenue,"Equip, Furniture And Materials",Horticultural,
http://thanet.gov.uk/supplierspend,Thanet District Council,21/06/2016,410350,1117.99,,Peer 1 (Uk) Limited,PEE003,East Kent Shared Services,Revenue,Communications & Computing,ICT,
http://thanet.gov.uk/supplierspend,Thanet District Council,21/06/2016,410338,22695.89,,Profile Security Services Limited,PRO018,Operational Services,Revenue,Services,Facilities And Management Serv,
http://thanet.gov.uk/supplierspend,Thanet District Council,21/06/2016,410546,1125.00,,Puls Global Ltd,PUL006,Operational Services,Revenue,"Equip, Furniture And Materials",Facilities And Management Serv,
http://thanet.gov.uk/supplierspend,Thanet District Council,21/06/2016,410348,385.00,,R Cannon,CAN007,Operational Services,Revenue,Services,Maritime Services,
http://thanet.gov.uk/supplierspend,Thanet District Council,21/06/2016,410777,805.00,,R Cannon,CAN007,Operational Services,Revenue,Services,Maritime Services,
http://thanet.gov.uk/supplierspend,Thanet District Council,21/06/2016,410885,3000.00,,Ramsgate Town Council,RAM031,Operational Services,Revenue,Services,Various Cats - Public Sector,
http://thanet.gov.uk/supplierspend,Thanet District Council,21/06/2016,410591,3007.50,,Ray Hole Architects Ltd,HOL037,Corporate Resources and S151,Balance Sheet,Other Land And Buildings-Hra,Construction-Repair And Maint,
http://thanet.gov.uk/supplierspend,Thanet District Council,21/06/2016,410592,3357.00,,Ray Hole Architects Ltd,HOL037,Corporate Resources and S151,Balance Sheet,Other Land And Buildings-Hra,Construction-Repair And Maint,
http://thanet.gov.uk/supplierspend,Thanet District Council,21/06/2016,410982,268.86,,REDACTED PERSONAL DATA,RUF001,Corporate Resources and S151,Balance Sheet,Capital Exp-Non Council Assets,Non Trade Payee,
http://thanet.gov.uk/supplierspend,Thanet District Council,21/06/2016,410897,12095.00,,South East Building Company Limited,SEB001,Corporate Resources and S151,Balance Sheet,Capital Exp-Non Council Assets,Grants,
http://thanet.gov.uk/supplierspend,Thanet District Council,21/06/2016,410901,7399.04,,South East Building Company Limited,SEB001,Corporate Resources and S151,Balance Sheet,Capital Exp-Non Council Assets,Grants,
http://thanet.gov.uk/supplierspend,Thanet District Council,21/06/2016,409854,5755.63,,Southern Electric,SEL007,Community Services,Revenue,Energy Costs,Utilities,
http://thanet.gov.uk/supplierspend,Thanet District Council,21/06/2016,410071,264.37,,Southern Electric,SEL007,Operational Services,Revenue,Energy Costs,Utilities,
http://thanet.gov.uk/supplierspend,Thanet District Council,21/06/2016,410103,4.57,,Southern Electric,SEL007,Community Services,Revenue,Energy Costs,Utilities,
http://thanet.gov.uk/supplierspend,Thanet District Council,21/06/2016,410103,475.10,,Southern Electric,SEL007,Operational Services,Revenue,Energy Costs,Utilities,
http://thanet.gov.uk/supplierspend,Thanet District Council,21/06/2016,410579,2531.88,,Southern Electric,SEL007,Community Services,Revenue,Energy Costs,Utilities,
http://thanet.gov.uk/supplierspend,Thanet District Council,21/06/2016,410853,5287.57,,Southern Electric,SEL007,Community Services,Revenue,Energy Costs,Utilities,
http://thanet.gov.uk/supplierspend,Thanet District Council,21/06/2016,410385,1314.99,,Southern Water,SWA001,Operational Services,Revenue,Water Services,Utilities,
http://thanet.gov.uk/supplierspend,Thanet District Council,21/06/2016,410387,801.06,,Southern Water,SWA001,Operational Services,Revenue,Water Services,Utilities,
http://thanet.gov.uk/supplierspend,Thanet District Council,21/06/2016,410388,347.99,,Southern Water,SWA001,Operational Services,Revenue,Water Services,Utilities,
http://thanet.gov.uk/supplierspend,Thanet District Council,21/06/2016,410455,297.71,,Southern Water,SWA001,Corporate Resources and S151,Revenue,Water Services,Utilities,
http://thanet.gov.uk/supplierspend,Thanet District Council,21/06/2016,410459,2428.65,,Southern Water,SWA001,Operational Services,Revenue,Water Services,Utilities,
http://thanet.gov.uk/supplierspend,Thanet District Council,21/06/2016,410461,1602.30,,Southern Water,SWA001,Operational Services,Revenue,Water Services,Utilities,
http://thanet.gov.uk/supplierspend,Thanet District Council,21/06/2016,410462,819.44,,Southern Water,SWA001,Operational Services,Revenue,Water Services,Utilities,
http://thanet.gov.uk/supplierspend,Thanet District Council,21/06/2016,410463,2470.69,,Southern Water,SWA001,Operational Services,Revenue,Water Services,Utilities,
http://thanet.gov.uk/supplierspend,Thanet District Council,21/06/2016,410521,-4106.77,,Southern Water,SWA001,Community Services,Revenue,Water Services,Utilities,
http://thanet.gov.uk/supplierspend,Thanet District Council,21/06/2016,410854,1000.43,,Southern Water,SWA001,Operational Services,Revenue,Water Services,Utilities,
http://thanet.gov.uk/supplierspend,Thanet District Council,21/06/2016,410872,2822.99,,Southern Water,SWA001,Community Services,Revenue,Water Services,Utilities,
http://thanet.gov.uk/supplierspend,Thanet District Council,21/06/2016,410874,1003.37,,Southern Water,SWA001,Operational Services,Revenue,Water Services,Utilities,
http://thanet.gov.uk/supplierspend,Thanet District Council,21/06/2016,410972,-1003.37,,Southern Water,SWA001,Operational Services,Revenue,Water Services,Utilities,
http://thanet.gov.uk/supplierspend,Thanet District Council,21/06/2016,409872,2000.00,,Spider Project Management Ltd,SPI009,Corporate Resources and S151,Balance Sheet,Investment Property For Lease,Consultancy,
http://thanet.gov.uk/supplierspend,Thanet District Council,21/06/2016,409873,2000.00,,Spider Project Management Ltd,SPI009,Corporate Resources and S151,Balance Sheet,Investment Property For Lease,Consultancy,
http://thanet.gov.uk/supplierspend,Thanet District Council,21/06/2016,410282,819.70,,Sutcliffe Play Ltd,SUT007,Operational Services,Revenue,"Repairs,  Alter & Mtce - Build",Sports Playground Equipment,
http://thanet.gov.uk/supplierspend,Thanet District Council,21/06/2016,410494,21.67,,Tfa Fuel Services Ltd,TFA003,Operational Services,Revenue,Direct Transport Costs,Utilities,
http://thanet.gov.uk/supplierspend,Thanet District Council,21/06/2016,410494,2819.33,,Tfa Fuel Services Ltd,TFA003,Operational Services,Revenue,"Equip, Furniture And Materials",Utilities,
http://thanet.gov.uk/supplierspend,Thanet District Council,21/06/2016,410283,3500.00,,The Glenwood Hotel,GLE007,Community Services,Revenue,Services,Housing Management,
http://thanet.gov.uk/supplierspend,Thanet District Council,21/06/2016,410284,833.33,,The Glenwood Hotel,GLE007,Community Services,Revenue,Services,Housing Management,
http://thanet.gov.uk/supplierspend,Thanet District Council,21/06/2016,410285,3208.32,,The Glenwood Hotel,GLE007,Community Services,Revenue,Services,Housing Management,
http://thanet.gov.uk/supplierspend,Thanet District Council,21/06/2016,410377,400.00,,Think Publishing Limited,THI011,Operational Services,Revenue,Miscellaneous Expenses,Facilities And Management Serv,
http://thanet.gov.uk/supplierspend,Thanet District Council,21/06/2016,410904,9762.00,,Titan Lifts Ltd,TIT006,Corporate Resources and S151,Balance Sheet,Capital Exp-Non Council Assets,Facilities And Management Serv,
http://thanet.gov.uk/supplierspend,Thanet District Council,21/06/2016,410160,1683.00,,Topdesk Uk Limited,TOP011,East Kent Shared Services,Revenue,Communications & Computing,ICT,
http://thanet.gov.uk/supplierspend,Thanet District Council,21/06/2016,410184,300.28,,Total Supplies Ltd,TOT009,Corporate Resources and S151,Revenue,"Print, Stat And Gen Off Exps",Cleaning And Janitorial,
http://thanet.gov.uk/supplierspend,Thanet District Council,21/06/2016,410184,-10.68,,Total Supplies Ltd,TOT009,Corporate Resources and S151,Balance Sheet,Stationery Stores,Cleaning And Janitorial,
http://thanet.gov.uk/supplierspend,Thanet District Council,21/06/2016,410369,1514.05,,Tourism Works,TOU007,Community Services,Revenue,Services,Facilities And Management Serv,
http://thanet.gov.uk/supplierspend,Thanet District Council,21/06/2016,410894,8605.33,,Trueden Disability Adaptations Ltd,TRU012,Corporate Resources and S151,Balance Sheet,Capital Exp-Non Council Assets,Grants,
http://thanet.gov.uk/supplierspend,Thanet District Council,21/06/2016,410376,263.45,,Unibind Systems Ltd,UNI027,Corporate Resources and S151,Revenue,"Print, Stat And Gen Off Exps",Facilities And Management Serv,
http://thanet.gov.uk/supplierspend,Thanet District Council,21/06/2016,409629,86005.00,,Van Oord Uk Ltd,VAN011,Operational Services,Revenue,"Repairs,  Alter & Mtce - Build",Maritime Services,
http://thanet.gov.uk/supplierspend,Thanet District Council,21/06/2016,410291,-295.00,,Van Oord Uk Ltd,VAN011,Operational Services,Revenue,"Repairs,  Alter & Mtce - Build",Maritime Services,
http://thanet.gov.uk/supplierspend,Thanet District Council,21/06/2016,410988,295.00,,Van Oord Uk Ltd,VAN011,Operational Services,Revenue,"Repairs,  Alter & Mtce - Build",Maritime Services,
http://thanet.gov.uk/supplierspend,Thanet District Council,21/06/2016,410357,322.68,,Veolia Es (Uk) Ltd,VEO001,Operational Services,Revenue,Cleaning & Domestic Supplies,Environmental Services,
http://thanet.gov.uk/supplierspend,Thanet District Council,21/06/2016,410358,161.34,,Veolia Es (Uk) Ltd,VEO001,Corporate Resources and S151,Balance Sheet,Rechargeable Works,Environmental Services,
http://thanet.gov.uk/supplierspend,Thanet District Council,21/06/2016,410358,2235.54,,Veolia Es (Uk) Ltd,VEO001,Operational Services,Revenue,Cleaning & Domestic Supplies,Environmental Services,
http://thanet.gov.uk/supplierspend,Thanet District Council,21/06/2016,410019,324.85,,W G Burbridge,BUR016,Operational Services,Revenue,"Equip, Furniture And Materials",Building Construction Material,
http://thanet.gov.uk/supplierspend,Thanet District Council,21/06/2016,410020,302.91,,W G Burbridge,BUR016,Operational Services,Revenue,"Equip, Furniture And Materials",Building Construction Material,
http://thanet.gov.uk/supplierspend,Thanet District Council,21/06/2016,410347,300.00,,Weld Of Fabrications Limited,WEL010,Corporate Resources and S151,Revenue,"Repairs,  Alter & Mtce - Build",Building Construction Material,
http://thanet.gov.uk/supplierspend,Thanet District Council,21/06/2016,410889,1500.00,,Westbrook Traders Association,WTA001,Operational Services,Revenue,Services,Horticultural,
http://thanet.gov.uk/supplierspend,Thanet District Council,21/06/2016,410886,1500.00,,Westgate & Westbrook Residents Ass,WES011,Operational Services,Revenue,Services,Horticultural,
http://thanet.gov.uk/supplierspend,Thanet District Council,21/06/2016,410156,420.00,,Westward Ho Hotel,WES055,Community Services,Revenue,Services,Housing Management,
http://thanet.gov.uk/supplierspend,Thanet District Council,21/06/2016,409932,5000.00,,Your Leisure Kent Limited,YOU016,Operational Services,Revenue,Services,Arts And Leisure Services,
http://thanet.gov.uk/supplierspend,Thanet District Council,21/06/2016,410299,5000.00,,Your Leisure Kent Limited,YOU016,Operational Services,Revenue,Services,Arts And Leisure Services,
http://thanet.gov.uk/supplierspend,Thanet District Council,23/06/2016,409442,323.52,,Allstar Business Solutions Ltd,ALL038,Operational Services,Revenue,Direct Transport Costs,Vehicle Management,
http://thanet.gov.uk/supplierspend,Thanet District Council,23/06/2016,411334,467.96,,Allstar Business Solutions Ltd,ALL038,Operational Services,Revenue,Direct Transport Costs,Vehicle Management,
http://thanet.gov.uk/supplierspend,Thanet District Council,23/06/2016,411336,618.50,,Allstar Business Solutions Ltd,ALL038,Operational Services,Revenue,Direct Transport Costs,Vehicle Management,
http://thanet.gov.uk/supplierspend,Thanet District Council,23/06/2016,411338,649.58,,Allstar Business Solutions Ltd,ALL038,Operational Services,Revenue,Direct Transport Costs,Vehicle Management,
http://thanet.gov.uk/supplierspend,Thanet District Council,23/06/2016,411341,684.23,,Allstar Business Solutions Ltd,ALL038,Operational Services,Revenue,Direct Transport Costs,Vehicle Management,
http://thanet.gov.uk/supplierspend,Thanet District Council,23/06/2016,411311,94533.29,,Dexia Public Finance Bank,DEX001,Corporate Resources and S151,Balance Sheet,Debit Interest And Expenses,Investments And Loans,
http://thanet.gov.uk/supplierspend,Thanet District Council,23/06/2016,411306,270791.00,,Maidstone Borough Council,MAI002,Corporate Resources and S151,Balance Sheet,Collection Fund,Various Cats - Public Sector,
http://thanet.gov.uk/supplierspend,Thanet District Council,23/06/2016,411306,776364.00,,Maidstone Borough Council,MAI002,Corporate Resources and S151,Revenue,Revenue Financing,Various Cats - Public Sector,
http://thanet.gov.uk/supplierspend,Thanet District Council,23/06/2016,411306,270791.00,,Maidstone Borough Council,MAI002,Corporate Resources and S151,Balance Sheet,Collection Fund,Various Cats - Public Sector,
http://thanet.gov.uk/supplierspend,Thanet District Council,23/06/2016,411306,776364.00,,Maidstone Borough Council,MAI002,Corporate Resources and S151,Revenue,Revenue Financing,Various Cats - Public Sector,
http://thanet.gov.uk/supplierspend,Thanet District Council,23/06/2016,411331,271.14,,Nat West Bank,NWE001,Corporate Resources and S151,Revenue,Services,Various Categories,
http://thanet.gov.uk/supplierspend,Thanet District Council,23/06/2016,411314,1764.77,,Santander,SAN017,Corporate Resources and S151,Revenue,Services,Various Categories,
http://thanet.gov.uk/supplierspend,Thanet District Council,23/06/2016,411314,588.26,,Santander,SAN017,Community Services,Revenue,Services,Various Categories,
http://thanet.gov.uk/supplierspend,Thanet District Council,23/06/2016,411315,858.49,,Santander,SAN017,Corporate Resources and S151,Revenue,Services,Various Categories,
http://thanet.gov.uk/supplierspend,Thanet District Council,23/06/2016,411303,-221840.00,,Secretary Of State,SEC003,Corporate Resources and S151,Revenue,Revenue Financing,Government Agencies,
http://thanet.gov.uk/supplierspend,Thanet District Council,23/06/2016,411303,1218666.00,,Secretary Of State,SEC003,Corporate Resources and S151,Balance Sheet,Collection Fund,Government Agencies,
http://thanet.gov.uk/supplierspend,Thanet District Council,23/06/2016,411318,620.99,,Worldpay Ltd,WOR008,Corporate Resources and S151,Revenue,Services,Financial Services,
http://thanet.gov.uk/supplierspend,Thanet District Council,23/06/2016,411320,342.65,,Worldpay Ltd,WOR008,Operational Services,Revenue,Services,Financial Services,
http://thanet.gov.uk/supplierspend,Thanet District Council,23/06/2016,411325,2420.50,,Worldpay Ltd,WOR008,Corporate Resources and S151,Revenue,Services,Financial Services,
http://thanet.gov.uk/supplierspend,Thanet District Council,23/06/2016,411328,2529.72,,Worldpay Ltd,WOR008,Corporate Resources and S151,Revenue,Services,Financial Services,
http://thanet.gov.uk/supplierspend,Thanet District Council,27/06/2016,PC8442,100.00,,Alexander Motorcycles,N/A,Operational Services,Revenue,"Clothes, Uniforms & Laundry",Vehicle Management,
http://thanet.gov.uk/supplierspend,Thanet District Council,27/06/2016,PC8390,9.00,,Amazon UK Marketplace,N/A,Operational Services,Revenue,"Print, Stat And Gen Off Exps",Stationery,
http://thanet.gov.uk/supplierspend,Thanet District Council,27/06/2016,PC8391,35.99,6.00,Amazon UK Marketplace,N/A,Operational Services,Revenue,"Equip, Furniture And Materials",Stationery,
http://thanet.gov.uk/supplierspend,Thanet District Council,27/06/2016,PC8414,21.74,,Amazon UK Marketplace,N/A,Chief Executive,Revenue,"Print, Stat And Gen Off Exps",Stationery,
http://thanet.gov.uk/supplierspend,Thanet District Council,27/06/2016,PC8415,9.18,,Amazon UK Marketplace,N/A,Operational Services,Revenue,Communications & Computing,Stationery,
http://thanet.gov.uk/supplierspend,Thanet District Council,27/06/2016,PC8416,2.42,,Amazon UK Marketplace,N/A,East Kent Shared Services,Revenue,Communications & Computing,Stationery,
http://thanet.gov.uk/supplierspend,Thanet District Council,27/06/2016,PC8420,69.98,11.67,Amazon UK Marketplace,N/A,Operational Services,Revenue,"Equip, Furniture And Materials",Stationery,
http://thanet.gov.uk/supplierspend,Thanet District Council,27/06/2016,PC8438,11.89,1.99,Amazon UK Marketplace,N/A,East Kent Shared Services,Revenue,"Equip, Furniture And Materials",Stationery,
http://thanet.gov.uk/supplierspend,Thanet District Council,27/06/2016,PC8389,174.84,,Amazon Uk Retail,N/A,Community Services,Revenue,"Equip, Furniture And Materials",Stationery,
http://thanet.gov.uk/supplierspend,Thanet District Council,27/06/2016,PC8384,8.50,1.42,Archive Homestore Ltd,N/A,Community Services,Revenue,Rents,Catering,
http://thanet.gov.uk/supplierspend,Thanet District Council,27/06/2016,PC8385,51.00,8.50,Archive Homestore Ltd,N/A,Community Services,Revenue,Catering,Catering,
http://thanet.gov.uk/supplierspend,Thanet District Council,27/06/2016,PC8336,16.87,,Booker Ltd,N/A,Community Services,Revenue,Catering,Catering,
http://thanet.gov.uk/supplierspend,Thanet District Council,27/06/2016,PC8337,14.58,,Booker Ltd,N/A,Community Services,Revenue,Catering,Catering,
http://thanet.gov.uk/supplierspend,Thanet District Council,27/06/2016,PC8367,38.37,,Booker Ltd,N/A,Chief Executive,Revenue,Catering,Catering,
http://thanet.gov.uk/supplierspend,Thanet District Council,27/06/2016,PC8372,20.89,,Booker Ltd,N/A,Operational Services,Revenue,Catering,Catering,
http://thanet.gov.uk/supplierspend,Thanet District Council,27/06/2016,PC8422,3.19,,Booker Ltd,N/A,Community Services,Revenue,Catering,Catering,
http://thanet.gov.uk/supplierspend,Thanet District Council,27/06/2016,PC8423,3.19,,Booker Ltd,N/A,Community Services,Revenue,Catering,Catering,
http://thanet.gov.uk/supplierspend,Thanet District Council,27/06/2016,PC8378,7.75,,Boots ,N/A,Chief Executive,Revenue,Catering,Healthcare,
http://thanet.gov.uk/supplierspend,Thanet District Council,27/06/2016,PC8395,295.94,,Cartridgesave,N/A,Operational Services,Revenue,"Equip, Furniture And Materials",Stationery,
http://thanet.gov.uk/supplierspend,Thanet District Council,27/06/2016,PC8371,89.00,,CIEH,N/A,Community Services,Revenue,Expenses,Human Resources,
http://thanet.gov.uk/supplierspend,Thanet District Council,27/06/2016,PC8359,50.00,,CIEH Limited,N/A,Community Services,Revenue,Expenses,Human Resources,
http://thanet.gov.uk/supplierspend,Thanet District Council,27/06/2016,PC8360,50.00,,CIEH Limited,N/A,Community Services,Revenue,Expenses,Human Resources,
http://thanet.gov.uk/supplierspend,Thanet District Council,27/06/2016,PC8373,125.00,,CIEH Limited,N/A,Community Services,Revenue,Expenses,Human Resources,
http://thanet.gov.uk/supplierspend,Thanet District Council,27/06/2016,PC8364,25.78,,Click Cleaning,N/A,Operational Services,Revenue,"Print, Stat And Gen Off Exps",Building Construction Material,
http://thanet.gov.uk/supplierspend,Thanet District Council,27/06/2016,PC8340,167.50,,DVLA Vehicle Tax,N/A,Operational Services,Revenue,Direct Transport Costs,Various Cats - Public Sector,
http://thanet.gov.uk/supplierspend,Thanet District Council,27/06/2016,PC8341,232.50,,DVLA Vehicle Tax,N/A,Operational Services,Revenue,Direct Transport Costs,Various Cats - Public Sector,
http://thanet.gov.uk/supplierspend,Thanet District Council,27/06/2016,PC8399,232.50,,DVLA Vehicle Tax,N/A,Operational Services,Revenue,Direct Transport Costs,Various Cats - Public Sector,
http://thanet.gov.uk/supplierspend,Thanet District Council,27/06/2016,PC8400,232.50,,DVLA Vehicle Tax,N/A,Operational Services,Revenue,Direct Transport Costs,Various Cats - Public Sector,
http://thanet.gov.uk/supplierspend,Thanet District Council,27/06/2016,PC8401,232.50,,DVLA Vehicle Tax,N/A,Operational Services,Revenue,Direct Transport Costs,Various Cats - Public Sector,
http://thanet.gov.uk/supplierspend,Thanet District Council,27/06/2016,PC8402,232.50,,DVLA Vehicle Tax,N/A,Operational Services,Revenue,Direct Transport Costs,Various Cats - Public Sector,
http://thanet.gov.uk/supplierspend,Thanet District Council,27/06/2016,PC8403,232.50,,DVLA Vehicle Tax,N/A,Operational Services,Revenue,Direct Transport Costs,Various Cats - Public Sector,
http://thanet.gov.uk/supplierspend,Thanet District Council,27/06/2016,PC8404,232.50,,DVLA Vehicle Tax,N/A,Operational Services,Revenue,Direct Transport Costs,Various Cats - Public Sector,
http://thanet.gov.uk/supplierspend,Thanet District Council,27/06/2016,PC8405,202.50,,DVLA Vehicle Tax,N/A,Operational Services,Revenue,Direct Transport Costs,Various Cats - Public Sector,
http://thanet.gov.uk/supplierspend,Thanet District Council,27/06/2016,PC8406,202.50,,DVLA Vehicle Tax,N/A,Operational Services,Revenue,Direct Transport Costs,Various Cats - Public Sector,
http://thanet.gov.uk/supplierspend,Thanet District Council,27/06/2016,PC8407,202.50,,DVLA Vehicle Tax,N/A,Operational Services,Revenue,Direct Transport Costs,Various Cats - Public Sector,
http://thanet.gov.uk/supplierspend,Thanet District Council,27/06/2016,PC8408,167.50,,DVLA Vehicle Tax,N/A,Operational Services,Revenue,Direct Transport Costs,Various Cats - Public Sector,
http://thanet.gov.uk/supplierspend,Thanet District Council,27/06/2016,PC8353,176.40,,EMAP Publishing Ltd,N/A,East Kent Shared Services,Revenue,Grants & Subscriptions,Facilities And Management Serv,
http://thanet.gov.uk/supplierspend,Thanet District Council,27/06/2016,PC8417,135.95,,Euro Office UK,N/A,Community Services,Revenue,Communications & Computing,Stationery,
http://thanet.gov.uk/supplierspend,Thanet District Council,27/06/2016,PC8299,20.00,3.34,EV Charging Elektromotive Uk,N/A,Community Services,Revenue,Direct Transport Costs,Vehicle Management,
http://thanet.gov.uk/supplierspend,Thanet District Council,27/06/2016,PC8462,20.00,,Facebook,N/A,Community Services,Revenue,Miscellaneous Expenses,Facilities And Management Serv,
http://thanet.gov.uk/supplierspend,Thanet District Council,27/06/2016,PC8463,12.51,,Facebook,N/A,Community Services,Revenue,Miscellaneous Expenses,Facilities And Management Serv,
http://thanet.gov.uk/supplierspend,Thanet District Council,27/06/2016,PC8383,28.41,,Facebook Ireland,N/A,Community Services,Revenue,Services,Facilities And Management Serv,
http://thanet.gov.uk/supplierspend,Thanet District Council,27/06/2016,PC8339,110.00,,First Aid 4 Less,N/A,Operational Services,Revenue,"Equip, Furniture And Materials",Healthcare,
http://thanet.gov.uk/supplierspend,Thanet District Council,27/06/2016,PC8375,16.66,,Flowers By Frances,N/A,Operational Services,Revenue,"Equip, Furniture And Materials",Horticulture,
http://thanet.gov.uk/supplierspend,Thanet District Council,27/06/2016,PC8455,106.64,,Google,N/A,Community Services,Revenue,Miscellaneous Expenses,ICT,
http://thanet.gov.uk/supplierspend,Thanet District Council,27/06/2016,PC8396,68.00,,Hall Fuels,N/A,Operational Services,Revenue,"Repairs,  Alter & Mtce - Build",Vehicle Management,
http://thanet.gov.uk/supplierspend,Thanet District Council,27/06/2016,PC8397,218.74,,Hall Fuels,N/A,Operational Services,Revenue,"Repairs,  Alter & Mtce - Build",Vehicle Management,
http://thanet.gov.uk/supplierspend,Thanet District Council,27/06/2016,PC8346,5949.00,,HM Court,N/A,East Kent Shared Services,Revenue,Services,Various Cats - Public Sector,
http://thanet.gov.uk/supplierspend,Thanet District Council,27/06/2016,PC8347,8634.00,,HM Court,N/A,East Kent Shared Services,Revenue,Services,Various Cats - Public Sector,
http://thanet.gov.uk/supplierspend,Thanet District Council,27/06/2016,PC8348,426.00,,HM Court,N/A,East Kent Shared Services,Revenue,Services,Various Cats - Public Sector,
http://thanet.gov.uk/supplierspend,Thanet District Council,27/06/2016,PC8349,504.00,,HM Court,N/A,East Kent Shared Services,Revenue,Services,Various Cats - Public Sector,
http://thanet.gov.uk/supplierspend,Thanet District Council,27/06/2016,PC8357,3981.00,,HM Court,N/A,East Kent Shared Services,Revenue,Services,Various Cats - Public Sector,
http://thanet.gov.uk/supplierspend,Thanet District Council,27/06/2016,PC8358,369.00,,HM Court,N/A,East Kent Shared Services,Revenue,Services,Various Cats - Public Sector,
http://thanet.gov.uk/supplierspend,Thanet District Council,27/06/2016,PC8013,129.17,,Holiday Inn  Leicester,N/A,Corporate Resources and S151,Revenue,Training,Human Resources,
http://thanet.gov.uk/supplierspend,Thanet District Council,27/06/2016,PC8014,75.00,,Holiday Inn  Leicester,N/A,Corporate Resources and S151,Revenue,Training,Human Resources,
http://thanet.gov.uk/supplierspend,Thanet District Council,27/06/2016,PC8015,75.00,,Holiday Inn  Leicester,N/A,Corporate Resources and S151,Revenue,Training,Human Resources,
http://thanet.gov.uk/supplierspend,Thanet District Council,27/06/2016,PC8413,157.50,,Ibis Euston,N/A,East Kent Shared Services,Revenue,Expenses,Human Resources,
http://thanet.gov.uk/supplierspend,Thanet District Council,27/06/2016,PC8369,86.80,,London & South East,N/A,Chief Executive,Revenue,Public Transport,Human Resources,
http://thanet.gov.uk/supplierspend,Thanet District Council,27/06/2016,PC8437,27.30,,London & South East,N/A,Community Services,Revenue,Public Transport,Human Resources,
http://thanet.gov.uk/supplierspend,Thanet District Council,27/06/2016,PC8461,12.30,,London & South East,N/A,Operational Services,Revenue,Public Transport,Human Resources,
http://thanet.gov.uk/supplierspend,Thanet District Council,27/06/2016,PC8329,13.32,,Maplin Thanet,N/A,Operational Services,Revenue,"Equip, Furniture And Materials",Building Construction Material,
http://thanet.gov.uk/supplierspend,Thanet District Council,27/06/2016,PC8419,24.99,,Maplin Thanet,N/A,Operational Services,Revenue,"Equip, Furniture And Materials",Building Construction Material,
http://thanet.gov.uk/supplierspend,Thanet District Council,27/06/2016,PC8328,110.00,,Possession Claims Online,N/A,Community Services,Revenue,Services,Various Cats - Public Sector,
http://thanet.gov.uk/supplierspend,Thanet District Council,27/06/2016,PC8366,325.00,,Possession Claims Online,N/A,Community Services,Revenue,Services,Various Cats - Public Sector,
http://thanet.gov.uk/supplierspend,Thanet District Council,27/06/2016,PC8368,110.00,,Possession Claims Online,N/A,Community Services,Revenue,Services,Various Cats - Public Sector,
http://thanet.gov.uk/supplierspend,Thanet District Council,27/06/2016,PC8386,110.00,,Possession Claims Online,N/A,Community Services,Revenue,Services,Various Cats - Public Sector,
http://thanet.gov.uk/supplierspend,Thanet District Council,27/06/2016,PC8388,325.00,,Possession Claims Online,N/A,Community Services,Revenue,Services,Various Cats - Public Sector,
http://thanet.gov.uk/supplierspend,Thanet District Council,27/06/2016,PC8432,110.00,,Possession Claims Online,N/A,Community Services,Revenue,Services,Various Cats - Public Sector,
http://thanet.gov.uk/supplierspend,Thanet District Council,27/06/2016,PC8444,325.00,,Possession Claims Online,N/A,Community Services,Revenue,Services,Various Cats - Public Sector,
http://thanet.gov.uk/supplierspend,Thanet District Council,27/06/2016,PC8445,325.00,,Possession Claims Online,N/A,Community Services,Revenue,Services,Various Cats - Public Sector,
http://thanet.gov.uk/supplierspend,Thanet District Council,27/06/2016,PC8387,135.91,,Professional Books,N/A,Community Services,Revenue,"Print, Stat And Gen Off Exps",Stationery,
http://thanet.gov.uk/supplierspend,Thanet District Council,27/06/2016,PC8398,27.50,4.59,Proper Coffee House,N/A,Chief Executive,Revenue,Catering,Catering,
http://thanet.gov.uk/supplierspend,Thanet District Council,27/06/2016,PC8376,298.80,,Quarterman Windscreens,N/A,Operational Services,Revenue,Direct Transport Costs,Vehicle Management,
http://thanet.gov.uk/supplierspend,Thanet District Council,27/06/2016,PC8410,298.80,,Quarterman Windscreens,N/A,Operational Services,Revenue,Direct Transport Costs,Vehicle Management,
http://thanet.gov.uk/supplierspend,Thanet District Council,27/06/2016,PC8394,220.00,,Ramada Plaza Southport,N/A,Community Services,Revenue,Expenses,Human Resources,
http://thanet.gov.uk/supplierspend,Thanet District Council,27/06/2016,PC8436,27.01,,Robbens Systems,N/A,Operational Services,Revenue,"Equip, Furniture And Materials",Building Construction Material,
http://thanet.gov.uk/supplierspend,Thanet District Council,27/06/2016,PC8392,34.98,,Scot-Petshop,N/A,Operational Services,Revenue,"Equip, Furniture And Materials",Environmental Services,
http://thanet.gov.uk/supplierspend,Thanet District Council,27/06/2016,PC8356,66.70,,Southeastern Web,N/A,Community Services,Revenue,Public Transport,Human Resources,
http://thanet.gov.uk/supplierspend,Thanet District Council,27/06/2016,PC8377,66.70,,Southeastern Web,N/A,Community Services,Revenue,Public Transport,Human Resources,
http://thanet.gov.uk/supplierspend,Thanet District Council,27/06/2016,PC8393,65.00,,Southeastern Web,N/A,Community Services,Revenue,Public Transport,Human Resources,
http://thanet.gov.uk/supplierspend,Thanet District Council,27/06/2016,PC8409,38.00,,Southeastern Web,N/A,Operational Services,Revenue,Public Transport,Human Resources,
http://thanet.gov.uk/supplierspend,Thanet District Council,27/06/2016,PC8412,16.00,,Southeastern Web,N/A,Corporate Governance,Revenue,Public Transport,Human Resources,
http://thanet.gov.uk/supplierspend,Thanet District Council,27/06/2016,PC8418,66.70,,Southeastern Web,N/A,Corporate Resources and S151,Revenue,Public Transport,Human Resources,
http://thanet.gov.uk/supplierspend,Thanet District Council,27/06/2016,PC8428,77.70,,Southeastern Web,N/A,Operational Services,Revenue,Public Transport,Human Resources,
http://thanet.gov.uk/supplierspend,Thanet District Council,27/06/2016,PC8429,61.80,,Southeastern Web,N/A,Operational Services,Revenue,Public Transport,Human Resources,
http://thanet.gov.uk/supplierspend,Thanet District Council,27/06/2016,PC8433,151.50,,Southeastern Web,N/A,Operational Services,Revenue,Public Transport,Human Resources,
http://thanet.gov.uk/supplierspend,Thanet District Council,27/06/2016,PC8434,61.10,,Southeastern Web,N/A,Community Services,Revenue,Public Transport,Human Resources,
http://thanet.gov.uk/supplierspend,Thanet District Council,27/06/2016,PC8435,77.70,,Southeastern Web,N/A,Corporate Governance,Revenue,Public Transport,Human Resources,
http://thanet.gov.uk/supplierspend,Thanet District Council,27/06/2016,PC8439,121.20,,Southeastern Web,N/A,Community Services,Revenue,Public Transport,Human Resources,
http://thanet.gov.uk/supplierspend,Thanet District Council,27/06/2016,PC8382,77.23,,TCOB Ltd,N/A,Operational Services,Revenue,"Equip, Furniture And Materials",Building Construction Material,
http://thanet.gov.uk/supplierspend,Thanet District Council,27/06/2016,PC8330,11.50,,TFL CC/LEZ Charge,N/A,Chief Executive,Revenue,Direct Transport Costs,Human Resources,
http://thanet.gov.uk/supplierspend,Thanet District Council,27/06/2016,PC8430,11.50,,TFL CC/LEZ Charge,N/A,Chief Executive,Revenue,Direct Transport Costs,Human Resources,
http://thanet.gov.uk/supplierspend,Thanet District Council,27/06/2016,PC8344,100.00,,Thanet County Court,N/A,Operational Services,Revenue,Services,Various Cats - Public Sector,
http://thanet.gov.uk/supplierspend,Thanet District Council,27/06/2016,PC8345,355.00,,Thanet County Court,N/A,Community Services,Revenue,Services,Various Cats - Public Sector,
http://thanet.gov.uk/supplierspend,Thanet District Council,27/06/2016,PC8352,110.00,,Thanet County Court,N/A,Community Services,Revenue,Services,Various Cats - Public Sector,
http://thanet.gov.uk/supplierspend,Thanet District Council,27/06/2016,PC8362,220.00,,Thanet County Court,N/A,Community Services,Revenue,Services,Various Cats - Public Sector,
http://thanet.gov.uk/supplierspend,Thanet District Council,27/06/2016,PC8363,355.00,,Thanet County Court,N/A,Community Services,Revenue,Services,Various Cats - Public Sector,
http://thanet.gov.uk/supplierspend,Thanet District Council,27/06/2016,PC8365,355.00,,Thanet County Court,N/A,Community Services,Revenue,Services,Various Cats - Public Sector,
http://thanet.gov.uk/supplierspend,Thanet District Council,27/06/2016,PC8426,355.00,,Thanet County Court,N/A,Community Services,Revenue,Services,Various Cats - Public Sector,
http://thanet.gov.uk/supplierspend,Thanet District Council,27/06/2016,PC8431,110.00,,Thanet County Court,N/A,Community Services,Revenue,Services,Various Cats - Public Sector,
http://thanet.gov.uk/supplierspend,Thanet District Council,27/06/2016,PC8421,733.00,,The Stage Newspaper,N/A,Community Services,Revenue,Miscellaneous Expenses,Facilities And Management Serv,
http://thanet.gov.uk/supplierspend,Thanet District Council,27/06/2016,PC8443,15.97,,Tool-Net,N/A,Operational Services,Revenue,"Equip, Furniture And Materials",Building Construction Material,
http://thanet.gov.uk/supplierspend,Thanet District Council,27/06/2016,PC8374,10.77,,Toolstation Ltd,N/A,Community Services,Revenue,"Equip, Furniture And Materials",Building Construction Material,
http://thanet.gov.uk/supplierspend,Thanet District Council,27/06/2016,PC8380,5.40,,Toolstation Ltd,N/A,Community Services,Revenue,"Equip, Furniture And Materials",Building Construction Material,
http://thanet.gov.uk/supplierspend,Thanet District Council,27/06/2016,PC8427,13.48,,Viking Direct,N/A,Operational Services,Revenue,"Print, Stat And Gen Off Exps",Stationery,
http://thanet.gov.uk/supplierspend,Thanet District Council,27/06/2016,PC8452,159.00,,Vimeo Pro,N/A,Community Services,Revenue,Communications & Computing,Facilities And Management Serv,
http://thanet.gov.uk/supplierspend,Thanet District Council,27/06/2016,PC8333,158.00,,Virgin Trains,N/A,Corporate Resources and S151,Revenue,Public Transport,Human Resources,
http://thanet.gov.uk/supplierspend,Thanet District Council,27/06/2016,PC8334,67.00,,Virgin Trains,N/A,East Kent Shared Services,Revenue,Public Transport,Human Resources,
http://thanet.gov.uk/supplierspend,Thanet District Council,27/06/2016,PC8335,72.00,,Virgin Trains,N/A,East Kent Shared Services,Revenue,Public Transport,Human Resources,
http://thanet.gov.uk/supplierspend,Thanet District Council,27/06/2016,PC8411,228.90,,Virgin Trains,N/A,East Kent Shared Services,Revenue,Public Transport,Human Resources,
http://thanet.gov.uk/supplierspend,Thanet District Council,27/06/2016,PC8424,66.70,,Virgin Trains,N/A,East Kent Shared Services,Revenue,Public Transport,Human Resources,
http://thanet.gov.uk/supplierspend,Thanet District Council,27/06/2016,PC8425,100.45,,Virgin Trains,N/A,Community Services,Revenue,Public Transport,Human Resources,
http://thanet.gov.uk/supplierspend,Thanet District Council,27/06/2016,PC8361,235.00,,Westminster Briefing,N/A,Operational Services,Revenue,Expenses,Human Resources,
http://thanet.gov.uk/supplierspend,Thanet District Council,27/06/2016,PC8379,4.97,,WM Morrisons PLC,N/A,Chief Executive,Revenue,Catering,Catering,
http://thanet.gov.uk/supplierspend,Thanet District Council,27/06/2016,PC8381,7.40,,WM Morrisons PLC,N/A,East Kent Shared Services,Revenue,Catering,Catering,
http://thanet.gov.uk/supplierspend,Thanet District Council,28/06/2016,410480,3613.09,,Adecco Uk Ltd,ADE005,Chief Executive,Revenue,Agency Staff,Human Resources,
http://thanet.gov.uk/supplierspend,Thanet District Council,28/06/2016,410911,375.00,,Advanced Bird & Pest Control Ltd,ADV001,Operational Services,Revenue,"Repairs,  Alter & Mtce - Build",Environmental Services,
http://thanet.gov.uk/supplierspend,Thanet District Council,28/06/2016,411233,932.93,,Albion Fencing&Construction Kent Ltd,ALB005,Operational Services,Revenue,"Repairs,  Alter & Mtce - Build",Building Construction Material,
http://thanet.gov.uk/supplierspend,Thanet District Council,28/06/2016,411445,473.00,,All Access Ltd,ALL031,Community Services,Revenue,Services,Building Construction Material,
http://thanet.gov.uk/supplierspend,Thanet District Council,28/06/2016,411405,413.45,,Amenity Horticultural Serv Ltd,AME001,Operational Services,Revenue,"Equip, Furniture And Materials",Horticultural,
http://thanet.gov.uk/supplierspend,Thanet District Council,28/06/2016,410831,950.00,,Amenity Training & Consultancy,AME011,Operational Services,Revenue,Training,Human Resources,
http://thanet.gov.uk/supplierspend,Thanet District Council,28/06/2016,410947,1425.00,,Amenity Training & Consultancy,AME011,Operational Services,Revenue,"Equip, Furniture And Materials",Human Resources,
http://thanet.gov.uk/supplierspend,Thanet District Council,28/06/2016,410755,800.00,,Aquasentry,AQU006,Corporate Resources and S151,Revenue,"Repairs,  Alter & Mtce - Build",Construction-Repair And Maint,
http://thanet.gov.uk/supplierspend,Thanet District Council,28/06/2016,410780,365.27,,Bookpoint Limited,BOO003,Community Services,Revenue,"Equip, Furniture And Materials",Stationery,
http://thanet.gov.uk/supplierspend,Thanet District Council,28/06/2016,411479,300.00,,Boys & Maughan,BOY001,Corporate Governance,Revenue,Services,Various Categories,
http://thanet.gov.uk/supplierspend,Thanet District Council,28/06/2016,411481,310.00,,British Gas Trading Limited,GAS001,Community Services,Revenue,Services,Utilities,
http://thanet.gov.uk/supplierspend,Thanet District Council,28/06/2016,410774,1284.85,,Buckingham Futures Limited,BUC010,Community Services,Revenue,Agency Staff,Human Resources,
http://thanet.gov.uk/supplierspend,Thanet District Council,28/06/2016,411400,1334.90,,Buckingham Futures Limited,BUC010,Community Services,Revenue,Agency Staff,Human Resources,
http://thanet.gov.uk/supplierspend,Thanet District Council,28/06/2016,411190,350.00,,Canterbury City Council,CAN004,Operational Services,Revenue,Grants & Subscriptions,Various Cats - Public Sector,
http://thanet.gov.uk/supplierspend,Thanet District Council,28/06/2016,410594,1056.00,,Centre For Public Scrutiny Ltd,CEN015,Corporate Resources and S151,Revenue,Training,Human Resources,
http://thanet.gov.uk/supplierspend,Thanet District Council,28/06/2016,410750,261.08,,Channel Commercials Plc,CCO001,Operational Services,Revenue,Direct Transport Costs,Vehicle Management,
http://thanet.gov.uk/supplierspend,Thanet District Council,28/06/2016,410917,441.32,,Civica Uk Ltd,CIV003,East Kent Shared Services,Revenue,Communications & Computing,ICT,
http://thanet.gov.uk/supplierspend,Thanet District Council,28/06/2016,410181,1075.00,,College Of Law Services Ltd,COL013,Corporate Resources and S151,Revenue,Training,Human Resources,
http://thanet.gov.uk/supplierspend,Thanet District Council,28/06/2016,410548,416799.62,,Coombs (Canterbury) Ltd,COO033,Corporate Resources and S151,Balance Sheet,Other Land And Buildings-Hra,Construction-Repair And Maint,
http://thanet.gov.uk/supplierspend,Thanet District Council,28/06/2016,411175,96265.20,,Dcb (Kent) Ltd,DCB001,Corporate Resources and S151,Balance Sheet,Repairs And Mtce Holding A/C,Construction-Repair And Maint,
http://thanet.gov.uk/supplierspend,Thanet District Council,28/06/2016,411235,10498.06,,Dcb (Kent) Ltd,DCB001,Corporate Resources and S151,Balance Sheet,Repairs And Mtce Holding A/C,Construction-Repair And Maint,
http://thanet.gov.uk/supplierspend,Thanet District Council,28/06/2016,411236,3003.00,,Dcb (Kent) Ltd,DCB001,Corporate Resources and S151,Balance Sheet,Repairs And Mtce Holding A/C,Construction-Repair And Maint,
http://thanet.gov.uk/supplierspend,Thanet District Council,28/06/2016,410745,2024.00,,Disclosure And Barring Service,DIS017,Community Services,Revenue,"Equip, Furniture And Materials",Human Resources,
http://thanet.gov.uk/supplierspend,Thanet District Council,28/06/2016,410361,155.00,,Dover Counselling Centre,DOV014,Corporate Resources and S151,Revenue,Employee Related Schemes,Healthcare,
http://thanet.gov.uk/supplierspend,Thanet District Council,28/06/2016,410361,205.00,,Dover Counselling Centre,DOV014,Operational Services,Revenue,Employee Related Schemes,Healthcare,
http://thanet.gov.uk/supplierspend,Thanet District Council,28/06/2016,410862,28730.62,,Dover District Council,DOV001,East Kent Shared Services,Revenue,Grants & Subscriptions,Various Cats - Public Sector,
http://thanet.gov.uk/supplierspend,Thanet District Council,28/06/2016,410863,17560.49,,Dover District Council,DOV001,East Kent Shared Services,Revenue,Grants & Subscriptions,Various Cats - Public Sector,
http://thanet.gov.uk/supplierspend,Thanet District Council,28/06/2016,410864,12503.09,,Dover District Council,DOV001,East Kent Shared Services,Revenue,Grants & Subscriptions,Various Cats - Public Sector,
http://thanet.gov.uk/supplierspend,Thanet District Council,28/06/2016,411192,264.80,,Eagle Envelopes Ltd,EAG001,East Kent Shared Services,Revenue,"Print, Stat And Gen Off Exps",Stationery,
http://thanet.gov.uk/supplierspend,Thanet District Council,28/06/2016,410456,547.80,,Electoral Reform Services,ELE010,Corporate Governance,Revenue,"Print, Stat And Gen Off Exps",Facilities And Management Serv,
http://thanet.gov.uk/supplierspend,Thanet District Council,28/06/2016,410593,5550.00,,Faithorn Farrell Timms Llp,FAI007,Corporate Resources and S151,Balance Sheet,Repairs And Mtce Holding A/C,Consultancy,
http://thanet.gov.uk/supplierspend,Thanet District Council,28/06/2016,410869,260.00,,Freight Transport Association,FRE007,Operational Services,Revenue,Grants & Subscriptions,Human Resources,
http://thanet.gov.uk/supplierspend,Thanet District Council,28/06/2016,411388,6703.10,,Fresh Acres Nurseries Limited,FRE017,Operational Services,Revenue,"Equip, Furniture And Materials",Horticultural,
http://thanet.gov.uk/supplierspend,Thanet District Council,28/06/2016,409888,792.00,,Gas Contract Services Ltd,GAS004,Corporate Resources and S151,Balance Sheet,Repairs And Mtce Holding A/C,Construction-Repair And Maint,
http://thanet.gov.uk/supplierspend,Thanet District Council,28/06/2016,410753,1828.20,,Gb Sport & Leisure Uk Ltd,GBS002,Operational Services,Revenue,"Equip, Furniture And Materials",Sports Playground Equipment,
http://thanet.gov.uk/supplierspend,Thanet District Council,28/06/2016,411260,744.35,,Graffiti Removal Ltd,GRA039,Operational Services,Revenue,"Equip, Furniture And Materials",Cleaning And Janitorial,
http://thanet.gov.uk/supplierspend,Thanet District Council,28/06/2016,410743,1195.00,,Groundsure Limited,GRO023,Corporate Resources and S151,Balance Sheet,Council Dwellings,Construction-Repair And Maint,
http://thanet.gov.uk/supplierspend,Thanet District Council,28/06/2016,410540,900.00,,Gulliver'S Truck Hire Limited,GUL001,Operational Services,Revenue,Cont Hire & Operating Lease,Vehicle Management,
http://thanet.gov.uk/supplierspend,Thanet District Council,28/06/2016,410960,900.00,,Gulliver'S Truck Hire Limited,GUL001,Operational Services,Revenue,Cont Hire & Operating Lease,Vehicle Management,
http://thanet.gov.uk/supplierspend,Thanet District Council,28/06/2016,411178,407.70,,Hands On Suppliers Ltd,HAN007,Operational Services,Revenue,"Equip, Furniture And Materials",Clothing,
http://thanet.gov.uk/supplierspend,Thanet District Council,28/06/2016,410952,289.13,,Heidelberg Graphic Equipment Ltd,HEI002,Corporate Resources and S151,Revenue,"Equip, Furniture And Materials",Facilities And Management Serv,
http://thanet.gov.uk/supplierspend,Thanet District Council,28/06/2016,410482,479.89,,Hr Go (Kent) Ltd,HRG001,Operational Services,Revenue,Agency Staff,Human Resources,
http://thanet.gov.uk/supplierspend,Thanet District Council,28/06/2016,410483,496.40,,Hr Go (Kent) Ltd,HRG001,Operational Services,Revenue,Agency Staff,Human Resources,
http://thanet.gov.uk/supplierspend,Thanet District Council,28/06/2016,410500,5834.53,,Hr Go (Kent) Ltd,HRG001,Operational Services,Revenue,Agency Staff,Human Resources,
http://thanet.gov.uk/supplierspend,Thanet District Council,28/06/2016,410501,12589.15,,Hr Go (Kent) Ltd,HRG001,Operational Services,Revenue,Agency Staff,Human Resources,
http://thanet.gov.uk/supplierspend,Thanet District Council,28/06/2016,410504,5537.83,,Hr Go (Kent) Ltd,HRG001,Operational Services,Revenue,Agency Staff,Human Resources,
http://thanet.gov.uk/supplierspend,Thanet District Council,28/06/2016,410814,879.31,,Hr Go (Kent) Ltd,HRG001,Operational Services,Revenue,Agency Staff,Human Resources,
http://thanet.gov.uk/supplierspend,Thanet District Council,28/06/2016,410816,309.75,,Hr Go (Kent) Ltd,HRG001,Corporate Resources and S151,Revenue,Agency Staff,Human Resources,
http://thanet.gov.uk/supplierspend,Thanet District Council,28/06/2016,410817,327.70,,Hr Go (Kent) Ltd,HRG001,Community Services,Revenue,Agency Staff,Human Resources,
http://thanet.gov.uk/supplierspend,Thanet District Council,28/06/2016,410818,3099.57,,Hr Go (Kent) Ltd,HRG001,Operational Services,Revenue,Agency Staff,Human Resources,
http://thanet.gov.uk/supplierspend,Thanet District Council,28/06/2016,410820,1752.08,,Hr Go (Kent) Ltd,HRG001,Operational Services,Revenue,Agency Staff,Human Resources,
http://thanet.gov.uk/supplierspend,Thanet District Council,28/06/2016,410821,850.71,,Hr Go (Kent) Ltd,HRG001,Operational Services,Revenue,Agency Staff,Human Resources,
http://thanet.gov.uk/supplierspend,Thanet District Council,28/06/2016,410822,358.16,,Hr Go (Kent) Ltd,HRG001,Operational Services,Revenue,Agency Staff,Human Resources,
http://thanet.gov.uk/supplierspend,Thanet District Council,28/06/2016,410823,1002.76,,Hr Go (Kent) Ltd,HRG001,Operational Services,Revenue,Agency Staff,Human Resources,
http://thanet.gov.uk/supplierspend,Thanet District Council,28/06/2016,411212,5922.86,,Hr Go (Kent) Ltd,HRG001,Operational Services,Revenue,Agency Staff,Human Resources,
http://thanet.gov.uk/supplierspend,Thanet District Council,28/06/2016,411213,6615.67,,Hr Go (Kent) Ltd,HRG001,Operational Services,Revenue,Agency Staff,Human Resources,
http://thanet.gov.uk/supplierspend,Thanet District Council,28/06/2016,411214,11285.40,,Hr Go (Kent) Ltd,HRG001,Operational Services,Revenue,Agency Staff,Human Resources,
http://thanet.gov.uk/supplierspend,Thanet District Council,28/06/2016,411467,529.47,,Hr Go (Kent) Ltd,HRG001,Community Services,Revenue,Agency Staff,Human Resources,
http://thanet.gov.uk/supplierspend,Thanet District Council,28/06/2016,410785,460.00,,J Rospo Building Contractors,ROS001,Operational Services,Revenue,"Repairs,  Alter & Mtce - Build",Construction-Repair And Maint,
http://thanet.gov.uk/supplierspend,Thanet District Council,28/06/2016,410789,4521.87,,J Rospo Building Contractors,ROS001,Corporate Resources and S151,Balance Sheet,Rechargeable Works,Construction-Repair And Maint,
http://thanet.gov.uk/supplierspend,Thanet District Council,28/06/2016,410790,404.00,,J Rospo Building Contractors,ROS001,Corporate Resources and S151,Revenue,"Repairs,  Alter & Mtce - Build",Construction-Repair And Maint,
http://thanet.gov.uk/supplierspend,Thanet District Council,28/06/2016,410792,1975.00,,J Rospo Building Contractors,ROS001,Corporate Resources and S151,Revenue,"Repairs,  Alter & Mtce - Build",Construction-Repair And Maint,
http://thanet.gov.uk/supplierspend,Thanet District Council,28/06/2016,411378,596.00,,J Rospo Building Contractors,ROS001,Corporate Resources and S151,Revenue,"Repairs,  Alter & Mtce - Build",Construction-Repair And Maint,
http://thanet.gov.uk/supplierspend,Thanet District Council,28/06/2016,410149,255.00,,Jane Chapman,CHA066,Corporate Resources and S151,Revenue,Training,Human Resources,
http://thanet.gov.uk/supplierspend,Thanet District Council,28/06/2016,411203,555.62,,Jewson Ltd,JEW001,Operational Services,Revenue,"Equip, Furniture And Materials",Building Construction Material,
http://thanet.gov.uk/supplierspend,Thanet District Council,28/06/2016,410829,1000.00,,Jgp Resourcing Ltd,JGP001,Community Services,Revenue,Advertising Expenses,Human Resources,
http://thanet.gov.uk/supplierspend,Thanet District Council,28/06/2016,411485,681.30,,John Gale,GAL001,Corporate Resources and S151,Balance Sheet,Capital Exp-Non Council Assets,Grants,
http://thanet.gov.uk/supplierspend,Thanet District Council,28/06/2016,410317,4840.00,,John H Rundle Limited,RUN006,Corporate Resources and S151,Balance Sheet,Other Land And Buildings-Hra,Building Construction Material,
http://thanet.gov.uk/supplierspend,Thanet District Council,28/06/2016,410766,3380.50,,Keltic Ltd,KEL007,Operational Services,Revenue,"Clothes, Uniforms & Laundry",Clothing,
http://thanet.gov.uk/supplierspend,Thanet District Council,28/06/2016,410827,2890.17,,Kent County Council,KCC002,Corporate Resources and S151,Balance Sheet,Capital Exp-Non Council Assets,Various Cats - Public Sector,
http://thanet.gov.uk/supplierspend,Thanet District Council,28/06/2016,410937,3885.00,,Kent County Council,KCC002,Community Services,Revenue,Services,Various Cats - Public Sector,
http://thanet.gov.uk/supplierspend,Thanet District Council,28/06/2016,411215,2933.95,,Kent County Council (Kcs),KCC003,Corporate Resources and S151,Revenue,"Equip, Furniture And Materials",Facilities And Management Serv,
http://thanet.gov.uk/supplierspend,Thanet District Council,28/06/2016,410859,400.00,,Km Media Group Limited,KMM001,Community Services,Revenue,Miscellaneous Expenses,Facilities And Management Serv,
http://thanet.gov.uk/supplierspend,Thanet District Council,28/06/2016,411185,401.00,,Km Media Group Limited,KMM001,Community Services,Revenue,Miscellaneous Expenses,Facilities And Management Serv,
http://thanet.gov.uk/supplierspend,Thanet District Council,28/06/2016,411191,824.00,,Knaves Ash Plants,KNA001,Operational Services,Revenue,"Equip, Furniture And Materials",Horticultural,
http://thanet.gov.uk/supplierspend,Thanet District Council,28/06/2016,410954,2159.43,,Lobster Van Hire Ltd,LOB001,Operational Services,Revenue,Cont Hire & Operating Lease,Vehicle Management,
http://thanet.gov.uk/supplierspend,Thanet District Council,28/06/2016,410961,790.00,,Lobster Van Hire Ltd,LOB001,Corporate Governance,Revenue,Cont Hire & Operating Lease,Vehicle Management,
http://thanet.gov.uk/supplierspend,Thanet District Council,28/06/2016,410479,8655.66,,Local Partnerships Llp,LOC020,Community Services,Revenue,Services,Consultancy,
http://thanet.gov.uk/supplierspend,Thanet District Council,28/06/2016,411177,1800.00,,Local World Limited,LOC018,Community Services,Revenue,Miscellaneous Expenses,Facilities And Management Serv,
http://thanet.gov.uk/supplierspend,Thanet District Council,28/06/2016,411478,720.00,,Lone Worker Solutions Limited,LON033,East Kent Shared Services,Revenue,Communications & Computing,ICT,
http://thanet.gov.uk/supplierspend,Thanet District Council,28/06/2016,411206,581.71,,Loomis Uk Ltd,LOO002,Operational Services,Revenue,Services,Financial Services,
http://thanet.gov.uk/supplierspend,Thanet District Council,28/06/2016,410784,137.52,,Mears Ltd,MEA003,Corporate Resources and S151,Revenue,"Repairs,  Alter & Mtce - Build",Construction-Repair And Maint,
http://thanet.gov.uk/supplierspend,Thanet District Council,28/06/2016,410784,160.88,,Mears Ltd,MEA003,Community Services,Revenue,"Repairs,  Alter & Mtce - Build",Construction-Repair And Maint,
http://thanet.gov.uk/supplierspend,Thanet District Council,28/06/2016,410784,356.93,,Mears Ltd,MEA003,Corporate Resources and S151,Balance Sheet,Rechargeable Works,Construction-Repair And Maint,
http://thanet.gov.uk/supplierspend,Thanet District Council,28/06/2016,410797,1152.62,,Mears Ltd,MEA003,Corporate Resources and S151,Balance Sheet,Repairs And Mtce Holding A/C,Construction-Repair And Maint,
http://thanet.gov.uk/supplierspend,Thanet District Council,28/06/2016,410799,11282.26,,Mears Ltd,MEA003,Corporate Resources and S151,Balance Sheet,Repairs And Mtce Holding A/C,Construction-Repair And Maint,
http://thanet.gov.uk/supplierspend,Thanet District Council,28/06/2016,410800,88531.61,,Mears Ltd,MEA003,Corporate Resources and S151,Balance Sheet,Repairs And Mtce Holding A/C,Construction-Repair And Maint,
http://thanet.gov.uk/supplierspend,Thanet District Council,28/06/2016,410801,6591.00,,Mears Ltd,MEA003,Corporate Resources and S151,Balance Sheet,Repairs And Mtce Holding A/C,Construction-Repair And Maint,
http://thanet.gov.uk/supplierspend,Thanet District Council,28/06/2016,410802,1160.73,,Mears Ltd,MEA003,Corporate Resources and S151,Balance Sheet,Repairs And Mtce Holding A/C,Construction-Repair And Maint,
http://thanet.gov.uk/supplierspend,Thanet District Council,28/06/2016,410803,1257.63,,Mears Ltd,MEA003,Corporate Resources and S151,Balance Sheet,Repairs And Mtce Holding A/C,Construction-Repair And Maint,
http://thanet.gov.uk/supplierspend,Thanet District Council,28/06/2016,410804,8974.77,,Mears Ltd,MEA003,Corporate Resources and S151,Balance Sheet,Repairs And Mtce Holding A/C,Construction-Repair And Maint,
http://thanet.gov.uk/supplierspend,Thanet District Council,28/06/2016,410805,2236.92,,Mears Ltd,MEA003,Corporate Resources and S151,Balance Sheet,Repairs And Mtce Holding A/C,Construction-Repair And Maint,
http://thanet.gov.uk/supplierspend,Thanet District Council,28/06/2016,410808,741.61,,Mears Ltd,MEA003,Operational Services,Revenue,"Repairs,  Alter & Mtce - Build",Construction-Repair And Maint,
http://thanet.gov.uk/supplierspend,Thanet District Council,28/06/2016,410811,4830.00,,Mears Ltd,MEA003,Corporate Resources and S151,Balance Sheet,Repairs And Mtce Holding A/C,Construction-Repair And Maint,
http://thanet.gov.uk/supplierspend,Thanet District Council,28/06/2016,410812,680.22,,Mears Ltd,MEA003,Corporate Resources and S151,Balance Sheet,Repairs And Mtce Holding A/C,Construction-Repair And Maint,
http://thanet.gov.uk/supplierspend,Thanet District Council,28/06/2016,410825,9212.82,,Mears Ltd,MEA003,Corporate Resources and S151,Balance Sheet,Repairs And Mtce Holding A/C,Construction-Repair And Maint,
http://thanet.gov.uk/supplierspend,Thanet District Council,28/06/2016,410916,256.11,,Mears Ltd,MEA003,Operational Services,Revenue,"Repairs,  Alter & Mtce - Build",Construction-Repair And Maint,
http://thanet.gov.uk/supplierspend,Thanet District Council,28/06/2016,410945,9721.09,,Mears Ltd,MEA003,Corporate Resources and S151,Balance Sheet,Repairs And Mtce Holding A/C,Construction-Repair And Maint,
http://thanet.gov.uk/supplierspend,Thanet District Council,28/06/2016,410950,6125.98,,Mears Ltd,MEA003,Corporate Resources and S151,Balance Sheet,Repairs And Mtce Holding A/C,Construction-Repair And Maint,
http://thanet.gov.uk/supplierspend,Thanet District Council,28/06/2016,410951,660.00,,Mears Ltd,MEA003,Corporate Resources and S151,Balance Sheet,Other Land And Buildings-Hra,Construction-Repair And Maint,
http://thanet.gov.uk/supplierspend,Thanet District Council,28/06/2016,410958,97706.27,,Mears Ltd,MEA003,Community Services,Revenue,"Repairs,  Alter & Mtce - Build",Construction-Repair And Maint,
http://thanet.gov.uk/supplierspend,Thanet District Council,28/06/2016,410959,419.19,,Mears Ltd,MEA003,Corporate Resources and S151,Revenue,"Repairs,  Alter & Mtce - Build",Construction-Repair And Maint,
http://thanet.gov.uk/supplierspend,Thanet District Council,28/06/2016,410959,908.84,,Mears Ltd,MEA003,Operational Services,Revenue,"Repairs,  Alter & Mtce - Build",Construction-Repair And Maint,
http://thanet.gov.uk/supplierspend,Thanet District Council,28/06/2016,410962,2766.33,,Mears Ltd,MEA003,Community Services,Revenue,"Repairs,  Alter & Mtce - Build",Construction-Repair And Maint,
http://thanet.gov.uk/supplierspend,Thanet District Council,28/06/2016,410963,1805.71,,Mears Ltd,MEA003,Community Services,Revenue,"Repairs,  Alter & Mtce - Build",Construction-Repair And Maint,
http://thanet.gov.uk/supplierspend,Thanet District Council,28/06/2016,410966,964.26,,Mears Ltd,MEA003,Corporate Resources and S151,Balance Sheet,Repairs And Mtce Holding A/C,Construction-Repair And Maint,
http://thanet.gov.uk/supplierspend,Thanet District Council,28/06/2016,410967,390.28,,Mears Ltd,MEA003,Corporate Resources and S151,Balance Sheet,Repairs And Mtce Holding A/C,Construction-Repair And Maint,
http://thanet.gov.uk/supplierspend,Thanet District Council,28/06/2016,410968,21221.24,,Mears Ltd,MEA003,Corporate Resources and S151,Balance Sheet,Repairs And Mtce Holding A/C,Construction-Repair And Maint,
http://thanet.gov.uk/supplierspend,Thanet District Council,28/06/2016,410969,913.04,,Mears Ltd,MEA003,Corporate Resources and S151,Balance Sheet,Repairs And Mtce Holding A/C,Construction-Repair And Maint,
http://thanet.gov.uk/supplierspend,Thanet District Council,28/06/2016,411164,4884.88,,Mears Ltd,MEA003,Corporate Resources and S151,Balance Sheet,Repairs And Mtce Holding A/C,Construction-Repair And Maint,
http://thanet.gov.uk/supplierspend,Thanet District Council,28/06/2016,411282,26.50,,Mears Ltd,MEA003,Corporate Resources and S151,Revenue,"Repairs,  Alter & Mtce - Build",Construction-Repair And Maint,
http://thanet.gov.uk/supplierspend,Thanet District Council,28/06/2016,411282,26.50,,Mears Ltd,MEA003,Community Services,Revenue,"Repairs,  Alter & Mtce - Build",Construction-Repair And Maint,
http://thanet.gov.uk/supplierspend,Thanet District Council,28/06/2016,411282,550.00,,Mears Ltd,MEA003,Corporate Resources and S151,Balance Sheet,Other Land And Buildings-Hra,Construction-Repair And Maint,
http://thanet.gov.uk/supplierspend,Thanet District Council,28/06/2016,404353,-261.00,,Metric Group Ltd,MET001,Operational Services,Revenue,"Equip, Furniture And Materials",Street And Traffic Management,
http://thanet.gov.uk/supplierspend,Thanet District Council,28/06/2016,409991,3045.00,,Metric Group Ltd,MET001,Operational Services,Revenue,"Equip, Furniture And Materials",Street And Traffic Management,
http://thanet.gov.uk/supplierspend,Thanet District Council,28/06/2016,409992,628.26,,Metric Group Ltd,MET001,Operational Services,Revenue,Communications & Computing,Street And Traffic Management,
http://thanet.gov.uk/supplierspend,Thanet District Council,28/06/2016,411404,8700.00,,Michael Page Int Recruitment Ltd,PAG008,Corporate Resources and S151,Revenue,Services,Human Resources,
http://thanet.gov.uk/supplierspend,Thanet District Council,28/06/2016,410761,553.52,,Morgan Jones Ltd,MOR001,Corporate Resources and S151,Revenue,Agency Staff,Human Resources,
http://thanet.gov.uk/supplierspend,Thanet District Council,28/06/2016,411229,468.56,,Morgan Jones Ltd,MOR001,Community Services,Revenue,Agency Staff,Human Resources,
http://thanet.gov.uk/supplierspend,Thanet District Council,28/06/2016,411231,542.30,,Morgan Jones Ltd,MOR001,Corporate Resources and S151,Revenue,Agency Staff,Human Resources,
http://thanet.gov.uk/supplierspend,Thanet District Council,28/06/2016,411232,381.48,,Morgan Jones Ltd,MOR001,Corporate Resources and S151,Revenue,Agency Staff,Human Resources,
http://thanet.gov.uk/supplierspend,Thanet District Council,28/06/2016,410908,400.00,,Mr W Mcknight,MCK003,Operational Services,Revenue,"Repairs,  Alter & Mtce - Build",Environmental Services,
http://thanet.gov.uk/supplierspend,Thanet District Council,28/06/2016,411504,636.00,,National Ass Of British Market Auths,NAT039,Community Services,Revenue,Grants & Subscriptions,Financial Services,
http://thanet.gov.uk/supplierspend,Thanet District Council,28/06/2016,410359,751.82,,Nauticalia Limited,NAU001,Community Services,Revenue,"Equip, Furniture And Materials",Stationery,
http://thanet.gov.uk/supplierspend,Thanet District Council,28/06/2016,410762,20000.00,,Neopost Limited Neofunds,NEO004,Corporate Resources and S151,Revenue,Communications & Computing,Mail Services,
http://thanet.gov.uk/supplierspend,Thanet District Council,28/06/2016,411477,3000.00,,Neopost Ltd Credifon,NEO002,Corporate Resources and S151,Revenue,Communications & Computing,Mail Services,
http://thanet.gov.uk/supplierspend,Thanet District Council,28/06/2016,411484,6095.19,,Northwood Builders,NOR002,Corporate Resources and S151,Balance Sheet,Capital Exp-Non Council Assets,Grants,
http://thanet.gov.uk/supplierspend,Thanet District Council,28/06/2016,411323,393.38,,Ocs Group Uk Ltd T/A Fountains,OCS005,Corporate Resources and S151,Balance Sheet,Repairs And Mtce Holding A/C,Cleaning And Janitorial,
http://thanet.gov.uk/supplierspend,Thanet District Council,28/06/2016,411326,11571.84,,Ocs Group Uk Ltd T/A Fountains,OCS005,Corporate Resources and S151,Balance Sheet,Repairs And Mtce Holding A/C,Cleaning And Janitorial,
http://thanet.gov.uk/supplierspend,Thanet District Council,28/06/2016,411327,875.96,,Ocs Group Uk Ltd T/A Fountains,OCS005,Corporate Resources and S151,Revenue,Cleaning & Domestic Supplies,Cleaning And Janitorial,
http://thanet.gov.uk/supplierspend,Thanet District Council,28/06/2016,411343,18056.74,,Ocs Group Uk Ltd T/A Fountains,OCS005,Operational Services,Revenue,Cleaning & Domestic Supplies,Cleaning And Janitorial,
http://thanet.gov.uk/supplierspend,Thanet District Council,28/06/2016,411344,641.77,,Ocs Group Uk Ltd T/A Fountains,OCS005,Operational Services,Revenue,Fixtures & Fittings,Cleaning And Janitorial,
http://thanet.gov.uk/supplierspend,Thanet District Council,28/06/2016,411234,264.38,,Opus Energy Limited,OPU003,Corporate Resources and S151,Revenue,Energy Costs,Utilities,
http://thanet.gov.uk/supplierspend,Thanet District Council,28/06/2016,410791,3916.12,,Oracle Corporation Uk Ltd,ORA001,East Kent Shared Services,Revenue,Communications & Computing,ICT,
http://thanet.gov.uk/supplierspend,Thanet District Council,28/06/2016,411209,390.00,,Ovenden Tipper Services Ltd,OVE001,Operational Services,Revenue,"Equip, Furniture And Materials",Vehicle Management,
http://thanet.gov.uk/supplierspend,Thanet District Council,28/06/2016,411210,585.00,,Ovenden Tipper Services Ltd,OVE001,Operational Services,Revenue,"Equip, Furniture And Materials",Vehicle Management,
http://thanet.gov.uk/supplierspend,Thanet District Council,28/06/2016,410778,1918.64,,Probrand Ltd,PRO012,East Kent Shared Services,Revenue,Communications & Computing,ICT,
http://thanet.gov.uk/supplierspend,Thanet District Council,28/06/2016,410826,563.00,,Probrand Ltd,PRO012,East Kent Shared Services,Revenue,Communications & Computing,ICT,
http://thanet.gov.uk/supplierspend,Thanet District Council,28/06/2016,411385,577.50,,R Cannon,CAN007,Operational Services,Revenue,Services,Maritime Services,
http://thanet.gov.uk/supplierspend,Thanet District Council,28/06/2016,410779,470.00,,R J Broadley Tree Surgery,RJB002,Operational Services,Revenue,Grounds Mtce Costs,Horticultural,
http://thanet.gov.uk/supplierspend,Thanet District Council,28/06/2016,411339,3034.80,,Rigby Taylor Ltd,RIG002,Operational Services,Revenue,"Equip, Furniture And Materials",Horticultural,
http://thanet.gov.uk/supplierspend,Thanet District Council,28/06/2016,410725,360.00,,Rippleffect,RIP001,Community Services,Revenue,Communications & Computing,ICT,
http://thanet.gov.uk/supplierspend,Thanet District Council,28/06/2016,410726,360.00,,Rippleffect,RIP001,Community Services,Revenue,Communications & Computing,ICT,
http://thanet.gov.uk/supplierspend,Thanet District Council,28/06/2016,410918,558.90,,Royal Mail,ROY004,Corporate Governance,Revenue,Communications & Computing,Mail Services,
http://thanet.gov.uk/supplierspend,Thanet District Council,28/06/2016,411387,3496.50,,Royal Mail,ROY004,Corporate Governance,Revenue,Communications & Computing,Mail Services,
http://thanet.gov.uk/supplierspend,Thanet District Council,28/06/2016,410053,475.00,,Salmestone Grange Ltd,SAL007,Corporate Governance,Revenue,Rents,Facilities And Management Serv,
http://thanet.gov.uk/supplierspend,Thanet District Council,28/06/2016,411193,2209.33,,Securitas Security Services (Uk) Ltd,SEC019,Corporate Resources and S151,Revenue,Services,Facilities And Management Serv,
http://thanet.gov.uk/supplierspend,Thanet District Council,28/06/2016,410590,10325.00,,Sharpe Pritchard Llp,SHA030,Corporate Resources and S151,Balance Sheet,Other Land And Buildings-Hra,Legal Services,
http://thanet.gov.uk/supplierspend,Thanet District Council,28/06/2016,410848,722.80,,Spaldings  Ltd,SPA006,Operational Services,Revenue,"Equip, Furniture And Materials",Horticultural,
http://thanet.gov.uk/supplierspend,Thanet District Council,28/06/2016,411412,528.00,,Stagecoach Services Limited,STA023,Corporate Resources and S151,Balance Sheet,Staff Bus Permits Holding A/C,Public Transport,
http://thanet.gov.uk/supplierspend,Thanet District Council,28/06/2016,411413,528.00,,Stagecoach Services Limited,STA023,Corporate Resources and S151,Balance Sheet,Staff Bus Permits Holding A/C,Public Transport,
http://thanet.gov.uk/supplierspend,Thanet District Council,28/06/2016,410147,29040.99,,Swale Heating Ltd,SWA006,Corporate Resources and S151,Balance Sheet,Repairs And Mtce Holding A/C,Building Construction Material,
http://thanet.gov.uk/supplierspend,Thanet District Council,28/06/2016,409832,472.99,,Swann Of York Limited,SWA009,Community Services,Revenue,"Equip, Furniture And Materials",Stationery,
http://thanet.gov.uk/supplierspend,Thanet District Council,28/06/2016,411490,586.43,,Templars Estates Ltd,TEM005,Corporate Resources and S151,Balance Sheet,Capital Exp-Non Council Assets,Grants,
http://thanet.gov.uk/supplierspend,Thanet District Council,28/06/2016,411491,564.43,,Templars Estates Ltd,TEM005,Corporate Resources and S151,Balance Sheet,Capital Exp-Non Council Assets,Grants,
http://thanet.gov.uk/supplierspend,Thanet District Council,28/06/2016,411492,419.55,,Templars Estates Ltd,TEM005,Corporate Resources and S151,Balance Sheet,Capital Exp-Non Council Assets,Grants,
http://thanet.gov.uk/supplierspend,Thanet District Council,28/06/2016,411493,413.38,,Templars Estates Ltd,TEM005,Corporate Resources and S151,Balance Sheet,Capital Exp-Non Council Assets,Grants,
http://thanet.gov.uk/supplierspend,Thanet District Council,28/06/2016,410938,837.58,,Tennant Uk Cleaning Solutions Ltd,TEN006,Operational Services,Revenue,Direct Transport Costs,Vehicle Management,
http://thanet.gov.uk/supplierspend,Thanet District Council,28/06/2016,410528,1208.33,,The Glenwood Hotel,GLE007,Community Services,Revenue,Services,Housing Management,
http://thanet.gov.uk/supplierspend,Thanet District Council,28/06/2016,410529,3500.00,,The Glenwood Hotel,GLE007,Community Services,Revenue,Services,Housing Management,
http://thanet.gov.uk/supplierspend,Thanet District Council,28/06/2016,410832,1354.16,,The Glenwood Hotel,GLE007,Community Services,Revenue,Services,Housing Management,
http://thanet.gov.uk/supplierspend,Thanet District Council,28/06/2016,410833,2708.33,,The Glenwood Hotel,GLE007,Community Services,Revenue,Services,Housing Management,
http://thanet.gov.uk/supplierspend,Thanet District Council,28/06/2016,410834,2625.00,,The Glenwood Hotel,GLE007,Community Services,Revenue,Services,Housing Management,
http://thanet.gov.uk/supplierspend,Thanet District Council,28/06/2016,411216,895.82,,The Glenwood Hotel,GLE007,Community Services,Revenue,Services,Housing Management,
http://thanet.gov.uk/supplierspend,Thanet District Council,28/06/2016,411218,2874.99,,The Glenwood Hotel,GLE007,Community Services,Revenue,Services,Housing Management,
http://thanet.gov.uk/supplierspend,Thanet District Council,28/06/2016,411198,275.00,,The Parish Of St Laurence In Thanet,STL004,Corporate Governance,Revenue,Rents,Facilities And Management Serv,
http://thanet.gov.uk/supplierspend,Thanet District Council,28/06/2016,410771,285.00,,Thornton Bobby Limited,THO009,Corporate Governance,Revenue,"Equip, Furniture And Materials",Domestic Goods,
http://thanet.gov.uk/supplierspend,Thanet District Council,28/06/2016,411407,5000.00,,Tunbridge Wells Borough Council,TUN002,East Kent Shared Services,Revenue,Services,Various Cats - Public Sector,
http://thanet.gov.uk/supplierspend,Thanet District Council,28/06/2016,410824,12420.00,,Turner & Townsend Project Mgmt Ltd,TUR021,Corporate Resources and S151,Balance Sheet,Other Land And Buildings-Hra,Consultancy,
http://thanet.gov.uk/supplierspend,Thanet District Council,28/06/2016,411448,606.18,,Victoria Flooring Ltd,VIC001,Corporate Resources and S151,Balance Sheet,Repairs And Mtce Holding A/C,Furniture And Soft Furnishings,
http://thanet.gov.uk/supplierspend,Thanet District Council,28/06/2016,410334,2055.30,,Viridian Energy Solutions Limited,VIR005,Corporate Resources and S151,Balance Sheet,Repairs And Mtce Holding A/C,Facilities And Management Serv,
http://thanet.gov.uk/supplierspend,Thanet District Council,28/06/2016,410335,375.00,,Viridian Energy Solutions Limited,VIR005,Corporate Resources and S151,Balance Sheet,Repairs And Mtce Holding A/C,Facilities And Management Serv,
http://thanet.gov.uk/supplierspend,Thanet District Council,28/06/2016,410059,312.30,,Viridor Waste Management Ltd,VIR003,Corporate Resources and S151,Revenue,Cleaning & Domestic Supplies,Environmental Services,
http://thanet.gov.uk/supplierspend,Thanet District Council,28/06/2016,410543,420.00,,Westward Ho Hotel,WES055,Community Services,Revenue,Services,Housing Management,
http://thanet.gov.uk/supplierspend,Thanet District Council,28/06/2016,411168,450.00,,Westward Ho Hotel,WES055,Community Services,Revenue,Services,Housing Management,
http://thanet.gov.uk/supplierspend,Thanet District Council,30/06/2016,411416,279.90,,Academia Ltd,ACA008,Corporate Governance,Revenue,Communications & Computing,ICT,
http://thanet.gov.uk/supplierspend,Thanet District Council,30/06/2016,411195,303.42,,Andrews & Elliott Limited,AND001,Operational Services,Revenue,"Equip, Furniture And Materials",Cemetery And Crematorium,
http://thanet.gov.uk/supplierspend,Thanet District Council,30/06/2016,411779,5900.00,,Dolphin Lifts Kent,DOL003,Corporate Resources and S151,Balance Sheet,Capital Exp-Non Council Assets,Grants,
http://thanet.gov.uk/supplierspend,Thanet District Council,30/06/2016,411515,326755.25,,East Kent Housing Ltd,EKH002,Community Services,Revenue,Other Agencies,Housing Management,
http://thanet.gov.uk/supplierspend,Thanet District Council,30/06/2016,411780,1535.68,,Family Mosaic Housing,FAM001,Corporate Resources and S151,Balance Sheet,Capital Exp-Non Council Assets,Housing Management,
http://thanet.gov.uk/supplierspend,Thanet District Council,30/06/2016,411782,902.48,,Family Mosaic Housing,FAM001,Corporate Resources and S151,Balance Sheet,Capital Exp-Non Council Assets,Housing Management,
http://thanet.gov.uk/supplierspend,Thanet District Council,30/06/2016,411552,16574.00,,Grant Thornton Uk Llp,GRA048,Corporate Resources and S151,Revenue,Services,Financial Services,
http://thanet.gov.uk/supplierspend,Thanet District Council,30/06/2016,410815,369.15,,Hr Go (Kent) Ltd,HRG001,Operational Services,Revenue,Agency Staff,Human Resources,
http://thanet.gov.uk/supplierspend,Thanet District Council,30/06/2016,411781,7487.27,,Hubbard & Houghton Construction Ltd,HUB003,Corporate Resources and S151,Balance Sheet,Capital Exp-Non Council Assets,Construction-Repair And Maint,
http://thanet.gov.uk/supplierspend,Thanet District Council,30/06/2016,411550,2365.00,,Iken Business Ltd,IKE001,Corporate Governance,Revenue,Communications & Computing,ICT,
http://thanet.gov.uk/supplierspend,Thanet District Council,30/06/2016,411784,775.30,,John Gale,GAL001,Corporate Resources and S151,Balance Sheet,Capital Exp-Non Council Assets,Grants,
http://thanet.gov.uk/supplierspend,Thanet District Council,30/06/2016,410157,2700.00,,Meridian Membranes,MER018,Corporate Resources and S151,Balance Sheet,Repairs And Mtce Holding A/C,Building Construction Material,
http://thanet.gov.uk/supplierspend,Thanet District Council,30/06/2016,410158,3350.00,,Meridian Membranes,MER018,Corporate Resources and S151,Balance Sheet,Repairs And Mtce Holding A/C,Building Construction Material,
http://thanet.gov.uk/supplierspend,Thanet District Council,30/06/2016,410487,2650.00,,Meridian Membranes,MER018,Corporate Resources and S151,Balance Sheet,Repairs And Mtce Holding A/C,Building Construction Material,
http://thanet.gov.uk/supplierspend,Thanet District Council,30/06/2016,411199,41964.00,,Parkeon Limited,PAR063,Operational Services,Revenue,"Equip, Furniture And Materials",Street And Traffic Management,
http://thanet.gov.uk/supplierspend,Thanet District Council,30/06/2016,411267,356.99,,Probrand Ltd,PRO012,East Kent Shared Services,Revenue,Communications & Computing,ICT,
http://thanet.gov.uk/supplierspend,Thanet District Council,30/06/2016,411267,0.03,,Probrand Ltd,PRO012,East Kent Shared Services,Revenue,"Equip, Furniture And Materials",ICT,
http://thanet.gov.uk/supplierspend,Thanet District Council,30/06/2016,411785,143369.32,,Public Works Loan Board,PWL001,Corporate Resources and S151,Balance Sheet,Debit Interest And Expenses,Investments And Loans,
http://thanet.gov.uk/supplierspend,Thanet District Council,30/06/2016,411783,7753.00,,Trueden Disability Adaptations Ltd,TRU012,Corporate Resources and S151,Balance Sheet,Capital Exp-Non Council Assets,Grants,
